{"text_format":"1","workbook":"xlsx","n_sheets":16,"sheets":["TOC","Required Doc Checklist","Addl Info Checklist","Preference Pts Checklist","Exh 1 Reps & Certs","Exh 2 CPA Cert","Exh 3 Arc-Eng Cert","Exh 4 Promote NHD","Exh 5 270 day","Exh 6 Comp Pd","Exh 7 Non-profit participation","Exh 8 PHA ","Exh 9 Architect Cert","Exh 10 S & U Attestation","Exh 11 Mixed-Income Cert","Exh 12 Self-Scoring Cert"],"not_rendered":{"charts":0,"images":0,"macros":0,"external_links":1,"defined_names":76,"comments":1,"pivot_tables":0},"unopened":[],"bounds":{"document_bytes":16777216,"sheet_cells":100000,"rows_first":2000,"rows_last":500,"rows_between":2000,"halvings":0,"cell_chars":16384,"cell_head_chars":4096},"cells_cut":0,"cells_raw":0,"read":"whole","date_system":"1900"}

{"sheet":"TOC","index":0,"n_rows":28,"n_cols":2,"rows_kept":28,"cut":false,"hidden":false,"merged":[[8,1,8,2],[9,1,9,2],[2,0,2,2],[5,1,5,2],[6,1,6,2],[7,1,7,2]]}
["State of Nevada Housing Division"]
["2016 LOW-INCOME HOUSING UNIVERSAL FUNDING APPLICATION"]
["TABLE OF CONTENTS (hyperlinked)"]
[]
["Project Information"]
["Project Name",{"$f":"ProjName","v":0}]
["Project Address",{"$f":"ProjAddr","v":0}]
["Project City, Cnty, Zp",{"$f":"ProjCCZip","v":0}]
["Applicant/",{"$f":"Applicant","v":0}]
["Co-Applicant",{"$f":"CoAppOrg","v":0}]
[]
[]
["TOC","Table of Contents"]
["Required Doc Checklist","Required Documents Checklist"]
["Addl Info Checklist","Additional Information Checklist"]
["Preference Pts Checklist","Preference Points Checklist"]
["Exh 1 Reps & Certs","Representations and Certifications"]
["Exh 2 CPA Cert","CPA Certification of Estimated Costs"]
["Exh 3 Arc-Eng Cert","Certification of Costs"]
["Exh 4 Promote NHD","Agreement to Promote NHD"]
["Exh 5 270 day","270 Day Agreement"]
["Exh 6 Comp Pd","Extension of Compliance Period"]
["Exh 7 Non-profit participation","Non-Profit Participation Certification"]
["Exh 8 PHA ","Certification of Notice to PHA"]
["Exh 9 Architect Cert","Certification of Design Standards (ADA, FH, 504)"]
["Exh 10 S & U Attestation","Sources & Uses Attestation"]
["Exh 11 Mixed-Income Cert","Mixed-Income Certification"]
["Exh 12 Self-Scoring Cert","Self-Scoring Certification"]

{"sheet":"Required Doc Checklist","index":1,"n_rows":48,"n_cols":10,"rows_kept":48,"cut":false,"hidden":false,"merged":[[32,2,32,9],[42,8,42,9],[43,8,43,9],[44,8,44,9],[45,8,45,9],[38,2,38,9],[22,2,22,9],[23,2,23,9],[24,2,24,9],[25,2,25,9],[31,2,31,9],[26,2,26,9],[27,2,27,9],[28,2,28,9],[29,2,29,9],[30,2,30,9],[17,2,17,9],[18,2,18,9],[19,2,19,9],[20,2,20,9],[21,2,21,9],[13,2,13,9],[14,2,14,9],[15,2,15,9],[16,2,16,9],[4,8,4,9],[5,4,5,8],[6,4,6,8],[7,4,7,8],[8,4,8,8],[9,4,9,8],[12,1,12,9],[47,2,47,9],[33,2,33,9],[34,2,34,9],[35,2,35,9],[36,2,36,9],[37,2,37,9],[39,8,39,9],[40,8,40,9],[41,8,41,9],[46,8,46,9]]}
[{"$f":"Div","v":"State of Nevada Housing Division"},null,null,null,null,null,null,null,null,"TOC"]
[{"$f":"NHD","v":"2016 NHD FUNDING APPLICATION"}]
["REQUIRED DOCUMENTATION CHECKLIST"]
[]
[null,"Project Information"]
[null,"Project Name",null,null,{"$f":"ProjName","v":0}]
[null,"Project Address",null,null,{"$f":"ProjAddr","v":0}]
[null,"Project City, Cnty, Zp",null,null,{"$f":"ProjCCZip","v":0}]
[null,"Applicant/",null,null,{"$f":"Applicant","v":0}]
[null,"Co-Applicant",null,null,{"$f":"CoAppOrg","v":0}]
[]
[]
[null,"The following documentation must accompany the application for Low-Income Housing Tax Credits and must be received by the application deadline in order for the application to be deemed accepted by the Division. See NAC 319.974(3). Deficiencies that cannot be corrected or clarified by the application deadline will result in rejection of the application. Please dedicate one section of your application package to required documents.  "]
[null,null,"1. Narrative description of the project."]
[null,null,"2. Application fee, as required, payable to the Nevada Housing Division.  This fee is non-refundable."]
[null,null,"3. Representations  and Certifications. See Exhibit 1"]
[null,null,"4. Self Scoring work sheet and Certification, see Exhibit 12. (please print out a copy of the self-scoring worksheet along with a signed copy of Exhibit 12 \"self scoring certification\")"]
[null,null,"5. Copies of the organizational documents of the Applicant/Co-Applicants of the project, along with all other documentation required under Section 13G (Threshold #7) of the QAP.  Please note that pursuant to Section 13G (Threshold #7) that for non-profit Applicants/Co-Applicants IRS documentation of I. R. C.  501(c) (3) or I. R. C. 501(c)(4) status is required and Exhibit 7 of the application must be completed.  "]
[null,null,"6. Copies of all applicable Project Site Control documents required under Section 13H (Threshold #8) of the QAP."]
[null,null,"7. Copies of all Zoning and Phase I Environmental Study documents required under Section 13 I (Threshold #9) of the QAP."]
[null,null,"8. Letter of intent from each of the proposed sources of funds, including any grants.  Commitment must include specific terms under which the loan or grant will be made; stating the outstanding contingencies for funding; one being how much the sponsor receives in tax credits.  Projects applying for tax credits that will receive direct financial assistance from HUD will need to include evidence of a completed Subsidy Layering Review."]
[null,null,"9. Copies of all documents required under Section 13 J (Threshold #10) of the QAP."]
[null,null,"10.  Copies of all documents required under Section 13 K (Threshold #11) of the QAP."]
[null,null,"11. Copies of all documents required under Section 13 N (Threshold #14) of the QAP."]
[null,null,"12.  Copies of all documents required under Section 13 O (Threshold #15) of the QAP."]
[null,null,"13.  Agreement to Commence Construction in 270 days from the date of receiving a reservation of tax credits, complete Exhibit Five.  See QAP Section 7 C."]
[null,null,"14. Project Signage Agreement.  See Exhibit 4."]
[null,null,"15. An estimated cost breakdown of each building within the project."]
[null,null,"16. Sources and Uses of Funds statement and signed copy of Exhibit 10 \"Sources and Uses Attestation\""]
[null,null,"17. A minimum 15-year pro-forma, operating and expense statement and cash flow statement."]
[null,null,"18. Report in accordance with Statements on Standards for Attestation engagements for Agreed Upon Procedures under AICPA Professional Standards by a certified public accountant attesting to the eligibility of construction costs.  See Exhibit 2."]
[null,null,"19. A report from an architect or professional engineer who is licensed in the State of Nevada which certifies that the project costs set forth in the application are true and accurate.  See Exhibit Three."]
[null,null,"20. An independent third party Market Study.  See QAP Section 13 A."]
[null,null,"21. For acquisition/rehabilitation projects, a Capital Needs Assessment.  See QAP Section 11.1 (1) Key Requirements."]
[null,null,"22. Evidence acceptable to the Division supporting the utility allowance figures reported in the application."]
[null,null,"23. Notice to Local Housing Authority or other Public Housing Agency.  See Exhibit 8."]
[null,null,"24. Letter certifying minimum thirty (30) year compliance period (excludes projects intended for eventual tenant ownership). If claiming preference points for extended period complete Exhibit 6  \"Agreement to Extend Compliance Period\""]
[null,null,"25. Applicant/Co-Applicant Architect Certification, Exhibit 9, that the project’s architectural plans meet all applicable mandated design standards, such as the Americans with Disabilities Act, Fair Housing and HUD Sec. 504 (as applicable).  To be submitted to the Division once a reservation of Tax Credits is awarded and immediately upon approval of the architectural plans by the local building department.  See QAP Section 12 II."]
[null,null,"26. Applicant/Co-Applicant(s) applying under Mixed Income complete Exhibit 11 \"Mixed Income Project Certification\""]
[]
[]
[]
[]
[]
[]
[]
[]
[null,null,"27. Property Management Company information. Attach copy of Nevada Housing Division's Training Certificate or LIHTC Training Cert. from Nationally Recognized Firm  (per Section 13 L (4) of QAP)"]

{"sheet":"Addl Info Checklist","index":2,"n_rows":16,"n_cols":5,"rows_kept":16,"cut":false,"hidden":false,"merged":[[2,0,2,3],[7,3,7,4],[22,2,22,4],[23,2,23,4],[5,1,5,2],[5,3,5,4],[16,2,16,4],[17,2,17,4],[18,2,18,4],[19,2,19,4],[20,2,20,4],[21,2,21,4],[12,2,12,4],[13,2,13,4],[14,2,14,4],[15,2,15,4]]}
["State of Nevada Housing Division",null,null,null,"TOC"]
["2016 LOW-INCOME HOUSING UNIVERSAL FUNDING APPLICATION"]
["ADDITIONAL INFORMATION (If required)"]
[]
[null,"Project Information"]
[null,"Project Name",null,{"$f":"ProjName","v":0}]
[null,"Project Address",null,{"$f":"ProjAddr","v":0}]
[null,"Project City, Cnty, Zp",null,{"$f":"ProjCCZip","v":0}]
[null,"Applicant/",null,{"$f":"Applicant","v":0}]
[null,"Co-Applicant",null,{"$f":"CoAppOrg","v":0}]
[]
[]
[null,null,"1. Copy of USDA-RD authorization letter."]
[null,null,"2. Copy of the Division’s determination letter that a project will be considered as qualifying to serve a particular Special Needs population.  See QAP Section 11-D."]
[null,null,"3. A statement and accompanying documentation to qualify for the point scoring in QAP Section 14.14.6 Affordable Housing Incentives. Statement and evidence must clearly support points being claimed.   "]
[null,null,"4. For Smart Design (Section 14.11  of QAP) provide documentation and/or statements from a planner, designer, engineer, etc., to verify smart design points /components being claimed.  All items requiring Division approval must have the approvals in the applications"]

{"sheet":"Preference Pts Checklist","index":3,"n_rows":57,"n_cols":8,"rows_kept":57,"cut":false,"hidden":false,"merged":[[48,2,48,7],[43,2,43,7],[44,2,44,7],[45,2,45,7],[46,2,46,7],[47,2,47,7],[38,2,38,7],[39,2,39,7],[40,2,40,7],[41,2,41,7],[42,2,42,7],[28,2,28,7],[29,2,29,7],[35,2,35,7],[36,2,36,7],[37,2,37,7],[30,2,30,7],[31,2,31,7],[32,2,32,7],[33,2,33,7],[34,2,34,7],[23,2,23,7],[24,2,24,7],[25,2,25,7],[26,2,26,7],[27,2,27,7],[12,1,12,7],[19,2,19,7],[20,2,20,7],[21,2,21,7],[22,2,22,7],[14,2,14,8],[15,2,15,7],[16,2,16,7],[17,2,17,7],[18,2,18,7],[5,5,5,7],[6,5,6,7],[7,5,7,7],[8,5,8,7],[9,5,9,7],[54,2,54,7],[55,2,55,7],[56,2,56,7],[49,2,49,7],[50,2,50,7],[51,2,51,7],[52,2,52,7],[53,2,53,7]]}
["State of Nevada Housing Division",null,null,null,null,null,null,"TOC"]
["2016 LOW-INCOME HOUSING UNIVERSAL FUNDING APPLICATION"]
["REQUIRED DOCUMENTATION FOR PREFERENCE POINTS CHECKLIST"]
[]
[null,"Project Information"]
[null,"Project Name",null,null,null,{"$f":"ProjName","v":0}]
[null,"Project Address",null,null,null,{"$f":"ProjAddr","v":0}]
[null,"Project City, Cnty, Zp",null,null,null,{"$f":"ProjCCZip","v":0}]
[null,"Applicant/",null,null,null,{"$f":"Applicant","v":0}]
[null,"Co-Applicant",null,null,null,{"$f":"CoAppOrg","v":0}]
[]
[]
[null,"The following documentation must be provided with the application if the project is seeking Preference Points.  Failure to provide the proper documentation will result in those Preference Points being disallowed.  Please dedicate one section of your application package to the Preference Point support documentation. See QAP or Excel part of Application for points available."]
[]
[null,null,"1. Preference Points for Project Location. QAP Section 14. 3 Certification from local government if required."]
[null,null,"2.  Preference Points for Project Readiness. QAP Section 14.4.  Attach supporting documentation verifying the points claimed.  "]
[null,null,"3.  Preference Points for Project Amenities. QAP Section 14.5.  Attach list of amenities for the project (per section 11) of the application.  "]
[null,null,"4.  Preference Points for Nevada Based Applicant. QAP Section 14.6.  Letter certifying project Applicant/Co-Applicant meets the requirements.  "]
[null,null,"5.  Preference Points for Nevada Projects by out of State Developers.  QAP Section 14.7.  Provide a list of projects developed within the State within the last 10 years along with other documentation required to establish that Applicant/Co-Applicants meet the requirements of QAP Section 14.7 "]
[null,null,"6.  Preference Points for Extended Affordability. QAP Section 14.8  Execute Exhibit Six of the application."]
[null,null,"7.  Preference Points for Landscape Water Efficiency. QAP Section 14.9.  Attach certification by architect/landscape architect that at least 75% of the total land area of the project is desert/zero landscaped."]
[null,null,"8. Preference Points for Historic Character. QAP Section 14.10.  Attach letter from State Historic Preservation Office.  "]
[null,null,"9.  Preference Points for Smart Design. QAP Section 14.11.  Attach certifications from appropriate sources (architect, engineer, market analyst) that properly addresses all issues related to site/location and for VOC compounds, water heaters; photovoltaic cells, etc. "]
[null,null,"10.  Preference Points for Superior Projects. QAP Section 14.12.  A/B to be determined by the Division.  C-G, provide evidence, or documentation to support preference points taken.   "]
[null,null,"11.*  Preference points for Senior Projects (age 55 and older). QAP Section 14.13(A).  "]
[null,null,"12.*  Preference Points for Special Needs Housing. QAP Section 14.13(B).  Attach documentation regarding the experience of the organization and the list of housing developed.    "]
[null,null,"13.*  Preference Points for Projects for Individuals. QAP Section 14.13(C).     "]
[null,null,"14.*  Preference Points for Projects for Individuals with Children/Families with Children.  QAP Sec. 14.13(D).   "]
[null,null,"15.*  Preference Points for Mixed Income Projects. QAP Section 14.13(E). Complete Ex. 9 of the application. "]
[null,null,"16.*  Preference Points for Mixed Use/Multi Use Projects. QAP Section 14.13(F).   "]
[null,null,"17. Preference Points for Northern Nevada Housing Expansion.  QAP Section 14.13 (G). To be determined per Appendix A: Nevada Northern Expansion Set-Aside Criteria.  "]
[null,null,"18. Veterans Housing Preference QAP Section 14.13 (H).    "]
[null,null,"19.  Preference Points for Low Rent Targeting.  QAP Section 14.14.1  Reproduce the formula in the QAP for all eligible or  Rent to Own projects.  "]
[null,null,"20.  Preference Points for Low Income Targeting.  QAP Section 14.14.2.  This is irrevocable and must be elected on the IRS form 8609.  Provide letter indicating that the project is opting for the 20% at 50% set-aside.   "]
[null,null,"21.  Preference Points for Supportive Services.  QAP Section 14.14.3.    \nProvide detailed information / contracts on the service provided, duration, etc."]
[null,null,"22.  Preference Points for Lowest Developer fee.  The Developer Fee must not exceed 15% of eligible basis of the project excluding the Developer Fee. The fee includes profit and overhead of the Applicant/Co-Applicant, in addition to fees for consultants/processing agents. The Developer Fee will no longer be calculated utilizing the 30% Metropolitan/Non-Metropolitan DDA / QCT boost and/or the state authorized basis boost in the 2016 QAP. QAP Section 14.14.4.  (Please include a printout of the Application Uses tab worksheet.)"]
[null,null,"23.  Preference Points for Lowest Contractor fee.  QAP Section 14.14.5.     "]
[null,null,"24.  Preference Points for Affordable Housing Incentives QAP Section 14.14.6. Submit verifying information to justify points claimed.  "]
[]
[]
[]
[]
[]
[]
[]
[]
[]
[]
[]
[]
[]
[]
[]
[]
[]
[]
[null,null,"* To be determined upon review of application."]

{"sheet":"Exh 1 Reps & Certs","index":4,"n_rows":108,"n_cols":7,"rows_kept":108,"cut":false,"hidden":false,"merged":[[5,2,5,3],[89,2,89,6],[90,2,90,6],[92,2,92,6],[6,2,6,6],[7,2,7,6],[8,2,8,6],[9,2,9,6],[10,2,10,6]]}
["State of Nevada Housing Division",null,null,null,null,null,"TOC"]
["2016 NHD FUNDING APPLICATION"]
[null,"REPRESENTATIONS AND CERTIFICATIONS"]
[null,"EXHIBIT ONE (1)"]
[]
[null,"Project Information"]
[null,"Project Name"]
[null,"Project Address"]
[null,"Project City, Cnty, Zp"]
[null,"Applicant/"]
[null,"Co-Applicant"]
[]
[]
[]
[]
[]
[]
[]
[]
[]
[]
[]
[]
[]
[]
[]
[]
[]
[]
[]
[]
[]
[]
[]
[]
[]
[]
[]
[]
[]
[]
[]
[]
[]
[]
[]
[]
[]
[]
[]
[]
[]
[]
[]
[]
[]
[]
[]
[]
[]
[]
[]
[]
[]
[]
[]
[]
[]
[]
[]
[]
[]
[]
[]
[]
[]
[]
[]
[]
[]
[]
[]
[]
[]
["IN WITNESS WHEREOF, the Applicant/Co-Applicants has/have caused this"]
["document to be duly executed in its name on this"]
[" _____ day of _____________ ,20___."]
[]
[null,"Date:"]
[null,"Project Owner:"]
[null,"Authorized Officer:"]
[null,"Title:"]
[null,"Signature:"]
[]
["STATE OF",null,")"]
[null,null,")"]
["COUNTY OF",null,")"]
[]
["On this _______ day of _________________ , 2016, before me personally came "]
["to me known who, being by me duly sworn, did depose and say that (s)he executed the"]
["above."]
[]
["IN WITNESS WHEREOF I have hereunto set my hand and affixed my official seal."]
[]
[]
[]
[]
["Notary Public"]

{"sheet":"Exh 2 CPA Cert","index":5,"n_rows":56,"n_cols":20,"rows_kept":56,"cut":false,"hidden":false,"merged":[[6,3,6,4],[51,3,51,4],[52,3,52,8],[26,2,26,3],[27,2,27,3],[37,5,37,8],[38,2,38,3],[7,3,7,8],[8,3,8,8],[36,3,36,4],[29,2,29,3],[22,2,22,3],[28,2,28,3],[28,8,28,10],[9,3,9,8],[10,3,10,8],[54,3,54,8],[19,3,19,4],[32,2,32,3],[23,2,23,3],[36,5,36,6],[42,5,42,8],[50,2,50,8],[49,2,49,8],[48,3,48,8],[39,2,39,3],[41,2,41,3],[41,5,41,8],[38,5,38,8],[12,3,12,8],[33,2,33,3],[34,2,34,3],[31,2,31,3],[53,3,53,8]]}
[{"$f":"Div","v":"State of Nevada Housing Division"},null,null,null,null,null,null,null,"TOC",null,null,{"$f":"(CELL(\"protect\",A1)=1)*1","v":1},{"$f":"(CELL(\"protect\",B1)=1)*1","v":1},{"$f":"(CELL(\"protect\",C1)=1)*1","v":1},{"$f":"(CELL(\"protect\",D1)=1)*1","v":1},{"$f":"(CELL(\"protect\",E1)=1)*1","v":1},{"$f":"(CELL(\"protect\",F1)=1)*1","v":1},{"$f":"(CELL(\"protect\",G1)=1)*1","v":1},{"$f":"(CELL(\"protect\",H1)=1)*1","v":1},{"$f":"(CELL(\"protect\",I1)=1)*1","v":1}]
[{"$f":"NHD","v":"2016 NHD FUNDING APPLICATION"},null,null,null,null,null,null,null,null,null,null,{"$f":"(CELL(\"protect\",A2)=1)*1","v":1},1,1,1,1,1,1,1,1]
["CPA CERTIFICATION OF ESTIMATED COST",null,null,null,null,null,null,null,null,null,null,1,1,1,1,1,1,1,1,1]
["INCLUDED IN ELIGIBLE BASIS",null,null,null,null,null,null,null,null,null,null,1,1,1,1,1,1,1,1,1]
[null,"EXHIBIT TWO (2)",null,null,null,null,null,null,null,null,null,1,1,1,1,1,1,1,1,1]
[null,null,null,null,null,null,null,null,null,null,null,1,1,1,1,1,1,1,1,1]
[null,null,"Project Information",null,null,null,null,null,null,null,null,1,1,1,1,1,1,1,1,1]
[null,null,"Project Name",{"$f":"ProjName","v":0},null,null,null,null,null,null,null,1,1,1,1,1,1,1,1,1]
[null,null,"Project Address",{"$f":"ProjAddr","v":0},null,null,null,null,null,null,null,1,1,1,1,1,1,1,1,1]
[null,null,"Project City, Cnty, Zp",{"$f":"ProjCCZip","v":0},null,null,null,null,null,null,null,1,1,1,1,1,1,1,1,1]
[null,null,"Applicant/",{"$f":"Applicant","v":0},null,null,null,null,null,null,null,1,1,1,1,1,1,1,1,1]
[]
[null,null,"Co-Applicant",{"$f":"CoAppOrg","v":0},null,null,null,null,null,null,null,1,1,1,1,1,1,1,1,1]
[null,null,null,null,null,null,null,null,null,null,null,1,1,1,1,1,1,1,1,1]
[null,null,"Project Type",null,null,null,null,null,null,null,null,1,1,1,1,1,1,1,1,1]
[null,null,"     New Construction ","       Acquisition/Rehabilitation",null,null,null,null,null,null,null,1,1,1,1,1,1,1,1,1]
[null,null,"     with Federal Subsidy","     with Federal Subsidy",null,null,null,null,null,null,null,1,1,1,1,1,1,1,1,1]
[null,null,"     without Federal Subsidy","     without Federal Subsidy",null,null,null,null,null,null,null,1,1,1,1,1,1,1,1,1]
[null,null,null,null,null,null,null,null,null,null,null,1,1,1,1,1,1,1,1,1]
[null,null,"Part Two","Building Information",null,null,null,null,null,null,null,1,1,1,1,1,1,1,1,1]
[null,null,null,null,"Number",null,"Percentage",null,null,null,null,1,1,1,1,1,1,1,1,1]
[null,null,null,null,null,null,null,null,null,null,null,1,1,1,1,1,1,1,1,1]
[null,null,"Residential Buildings",null,0,null,{"$f":"IF($E$25=0,0,E23/$E$25)","v":0},null,null,null,null,1,1,1,1,0,1,1,1,1]
[null,null,"Other/Community Buildings",null,0,null,{"$f":"IF($E$25=0,0,E24/$E$25)","v":0},null,null,null,null,1,1,1,1,0,1,1,1,1]
[null,null,"  Total Buildings",null,{"$f":"SUM(E23:E24)","v":0},null,{"$f":"IF($E$25=0,0,E25/$E$25)","v":0},null,null,null,null,1,1,1,1,0,1,1,1,1]
[null,null,null,null,null,null,null,null,null,null,null,1,1,1,1,1,1,1,1,1]
[null,null,"Restricted (LIHTC, HOME…) Units",null,0,null,{"$f":"IF($E$30=0,0,E27/$E$30)","v":0},null,null,null,null,1,1,1,1,0,1,1,1,1]
[null,null,"Market Units",null,0,null,{"$f":"IF($E$30=0,0,E28/$E$30)","v":0},null,null,null,null,1,1,1,1,0,1,1,1,1]
[null,null,"Mgt Units",null,0,null,{"$f":"IF($E$30=0,0,E29/$E$30)","v":0},null,null,null,null,1,1,1,1,0,1,1,1,1]
[null,null,"  Total # Residential Units",null,{"$f":"SUM(E27:E29)","v":0},null,{"$f":"IF($E$30=0,0,E30/$E$30)","v":0},null,null,null,null,1,1,1,1,0,1,1,1,1]
[null,null,null,null,null,null,null,null,null,null,null,1,1,1,1,1,1,1,1,1]
[null,null,"Restricted & Mgrs Unit sf",null,0,null,{"$f":"IF($E$35=0,0,E32/$E$35)","v":0},null,null,null,null,1,1,1,1,0,1,1,1,1]
[null,null,"Market Unit sf",null,0,null,{"$f":"IF($E$35=0,0,E33/$E$35)","v":0},null,null,null,null,1,1,1,1,0,1,1,1,1]
[null,null,"Common Area(s) sf",null,0,null,{"$f":"IF($E$35=0,0,E34/$E$35)","v":0},null,null,null,null,1,1,1,1,0,1,1,1,1]
[null,null,"  Total Project Site Square Footage",null,{"$f":"SUM(E32:E34)","v":0},null,{"$f":"IF($E$35=0,0,E35/$E$35)","v":0},null,null,null,null,1,1,1,1,0,1,1,1,1]
[null,null,null,null,null,null,null,null,null,null,null,1,1,1,1,1,1,1,1,1]
[null,null,"Part Three","Project Construction Cost",null,"Notes",null,null,null,null,null,1,1,1,1,1,1,1,1,1]
[null,null,"Total Cost",null,0,null,null,null,null,null,null,1,1,1,1,0,0,0,0,0]
[null,null,"Less:  Grants/Subsidies                        ",null,0,null,null,null,null,null,null,1,1,1,1,0,0,0,0,0]
[null,null,"  Costs less Grants/Subsidies",null,{"$f":"+E38-E39","v":0},null,null,null,null,null,null,1,1,1,1,1,1,1,1,1]
[]
[null,null,"Total Eligible Basis",null,0,null,null,null,null,null,null,1,1,1,1,0,0,0,0,0]
[null,null,"Adjustments",null,0,"Basis Boost",null,null,null,null,null,1,1,1,1,0,0,0,0,0]
[null,null,"  Qualified Basis",null,{"$f":"+E42*E43","v":0},null,null,null,null,null,null,1,1,1,1,0,1,1,1,1]
[null,null,null,null,null,null,null,null,null,null,null,{"$f":"(CELL(\"protect\",A45)=1)*1","v":1},{"$f":"(CELL(\"protect\",B45)=1)*1","v":1},{"$f":"(CELL(\"protect\",C45)=1)*1","v":1},{"$f":"(CELL(\"protect\",D45)=1)*1","v":1},{"$f":"(CELL(\"protect\",E45)=1)*1","v":1},{"$f":"(CELL(\"protect\",F45)=1)*1","v":1},{"$f":"(CELL(\"protect\",G45)=1)*1","v":1},{"$f":"(CELL(\"protect\",H45)=1)*1","v":1},{"$f":"(CELL(\"protect\",I45)=1)*1","v":1}]
[null,null,null,null,null,null,null,null,null,null,null,1,1,1,1,1,1,1,1,1]
[null,null,null,null,null,null,null,null,null,null,null,1,1,1,1,1,1,1,1,1]
[null,null,null,null,null,null,null,null,null,null,null,1,1,1,1,1,1,1,1,1]
[null,null,"Part Four","ATTESTATION BY CPA",null,null,null,null,null,null,null,1,1,1,1,1,1,1,1,1]
[null,null,"In accordance with Statements on Standards for Attestation engagements for Agreed Upon Procedures under AICPA Professional Standards, the Certified Public Accountant of the Developer shall provide a report attesting to the eligibility of the estimated construction costs as set forth in Part III above in accordance with Internal Revenue Code Section 42.",null,null,null,null,null,null,null,null,1,1,1,1,1,1,1,1,1]
[null,null,"CPA has read IRS Technical Assistance Memorandum, Private Rulings 200043015, 200043017, 200044004, and 200044005, understood the implications of these rulings, discussed their potential impact on the eligible basis of this project with the owner, and prepared this cost certification in consideration of this discussion.",null,null,null,null,null,null,null,null,1,1,1,1,1,1,1,1,1]
[null,null,"Date:",null,null,null,null,null,null,null,null,{"$f":"(CELL(\"protect\",A52)=1)*1","v":1},{"$f":"(CELL(\"protect\",B52)=1)*1","v":1},{"$f":"(CELL(\"protect\",C52)=1)*1","v":1},{"$f":"(CELL(\"protect\",D52)=1)*1","v":0},{"$f":"(CELL(\"protect\",E52)=1)*1","v":0},{"$f":"(CELL(\"protect\",F52)=1)*1","v":1},{"$f":"(CELL(\"protect\",G52)=1)*1","v":1},{"$f":"(CELL(\"protect\",H52)=1)*1","v":1},{"$f":"(CELL(\"protect\",I52)=1)*1","v":1}]
[null,null,"Firm Name:",null,null,null,null,null,null,null,null,1,1,1,0,0,0,0,0,0]
[null,null,"Accountant:",null,null,null,null,null,null,null,null,1,1,1,0,0,0,0,0,0]
[null,null,"Signature:",null,null,null,null,null,null,null,null,1,1,1,0,0,0,0,0,0]
[null,null,null,null,null,null,null,null,null,null,null,1,1,1,1,1,1,1,1,1]

{"sheet":"Exh 3 Arc-Eng Cert","index":6,"n_rows":57,"n_cols":23,"rows_kept":57,"cut":false,"hidden":false,"merged":[[6,3,6,4],[32,2,32,3],[53,3,53,9],[56,3,56,9],[52,6,52,8],[54,3,54,9],[30,2,30,3],[7,3,7,8],[8,3,8,8],[9,3,9,8],[20,2,20,3],[10,3,10,8],[12,3,12,8],[45,2,45,8]]}
[{"$f":"Div","v":"State of Nevada Housing Division"},null,null,null,null,null,null,null,"TOC",null,null,{"$f":"(IF(IsLocked(A1)*1=1,1,0))","v":{"$error":"#NAME?"}},{"$f":"(IF(IsLocked(B1)*1=1,1,0))","v":{"$error":"#NAME?"}},{"$f":"(IF(IsLocked(C1)*1=1,1,0))","v":{"$error":"#NAME?"}},{"$f":"(IF(IsLocked(D1)*1=1,1,0))","v":{"$error":"#NAME?"}},{"$f":"(IF(IsLocked(E1)*1=1,1,0))","v":{"$error":"#NAME?"}},{"$f":"(IF(IsLocked(F1)*1=1,1,0))","v":{"$error":"#NAME?"}},{"$f":"(IF(IsLocked(G1)*1=1,1,0))","v":{"$error":"#NAME?"}},{"$f":"(IF(IsLocked(H1)*1=1,1,0))","v":{"$error":"#NAME?"}},{"$f":"(IF(IsLocked(I1)*1=1,1,0))","v":{"$error":"#NAME?"}},{"$f":"(IF(IsLocked(J1)*1=1,1,0))","v":{"$error":"#NAME?"}},{"$f":"(IF(IsLocked(K1)*1=1,1,0))","v":{"$error":"#NAME?"}},{"$f":"(IF(IsLocked(L1)*1=1,1,0))","v":{"$error":"#NAME?"}}]
[{"$f":"NHD","v":"2016 NHD FUNDING APPLICATION"},null,null,null,null,null,null,null,null,null,null,{"$error":"#NAME?"},{"$error":"#NAME?"},{"$error":"#NAME?"},{"$error":"#NAME?"},{"$error":"#NAME?"},{"$error":"#NAME?"},{"$error":"#NAME?"},{"$error":"#NAME?"},{"$error":"#NAME?"},{"$error":"#NAME?"},{"$error":"#NAME?"},{"$error":"#NAME?"}]
["ARCHITECT OR PROFESSIONAL ENGINEER CERTIFICATION ",null,null,null,null,null,null,null,null,null,null,{"$error":"#NAME?"},{"$error":"#NAME?"},{"$error":"#NAME?"},{"$error":"#NAME?"},{"$error":"#NAME?"},{"$error":"#NAME?"},{"$error":"#NAME?"},{"$error":"#NAME?"},{"$error":"#NAME?"},{"$error":"#NAME?"},{"$error":"#NAME?"},{"$error":"#NAME?"}]
["OF COST BEING WITHIN THE GUIDE LINES OF NEVADA’S CURRENT QAP ",null,null,null,null,null,null,null,null,null,null,{"$error":"#NAME?"},{"$error":"#NAME?"},{"$error":"#NAME?"},{"$error":"#NAME?"},{"$error":"#NAME?"},{"$error":"#NAME?"},{"$error":"#NAME?"},{"$error":"#NAME?"},{"$error":"#NAME?"},{"$error":"#NAME?"},{"$error":"#NAME?"},{"$error":"#NAME?"}]
[null,"EXHIBIT THREE (3)",null,null,null,null,null,null,null,null,null,{"$error":"#NAME?"},{"$error":"#NAME?"},{"$error":"#NAME?"},{"$error":"#NAME?"},{"$error":"#NAME?"},{"$error":"#NAME?"},{"$error":"#NAME?"},{"$error":"#NAME?"},{"$error":"#NAME?"},{"$error":"#NAME?"},{"$error":"#NAME?"},{"$error":"#NAME?"}]
[null,null,null,null,null,null,null,null,null,null,null,{"$error":"#NAME?"},{"$error":"#NAME?"},{"$error":"#NAME?"},{"$error":"#NAME?"},{"$error":"#NAME?"},{"$error":"#NAME?"},{"$error":"#NAME?"},{"$error":"#NAME?"},{"$error":"#NAME?"},{"$error":"#NAME?"},{"$error":"#NAME?"},{"$error":"#NAME?"}]
[null,null,"Project Information",null,null,null,null,null,null,null,null,{"$error":"#NAME?"},{"$error":"#NAME?"},{"$error":"#NAME?"},{"$error":"#NAME?"},{"$error":"#NAME?"},{"$error":"#NAME?"},{"$error":"#NAME?"},{"$error":"#NAME?"},{"$error":"#NAME?"},{"$error":"#NAME?"},{"$error":"#NAME?"},{"$error":"#NAME?"}]
[null,null,"Project Name",{"$f":"ProjName","v":0},null,null,null,null,null,null,null,{"$error":"#NAME?"},{"$error":"#NAME?"},{"$error":"#NAME?"},{"$error":"#NAME?"},{"$error":"#NAME?"},{"$error":"#NAME?"},{"$error":"#NAME?"},{"$error":"#NAME?"},{"$error":"#NAME?"},{"$error":"#NAME?"},{"$error":"#NAME?"},{"$error":"#NAME?"}]
[null,null,"Project Address",{"$f":"ProjAddr","v":0},null,null,null,null,null,null,null,{"$error":"#NAME?"},{"$error":"#NAME?"},{"$error":"#NAME?"},{"$error":"#NAME?"},{"$error":"#NAME?"},{"$error":"#NAME?"},{"$error":"#NAME?"},{"$error":"#NAME?"},{"$error":"#NAME?"},{"$error":"#NAME?"},{"$error":"#NAME?"},{"$error":"#NAME?"}]
[null,null,"Project City, Cnty, Zp",{"$f":"ProjCCZip","v":0},null,null,null,null,null,null,null,{"$error":"#NAME?"},{"$error":"#NAME?"},{"$error":"#NAME?"},{"$error":"#NAME?"},{"$error":"#NAME?"},{"$error":"#NAME?"},{"$error":"#NAME?"},{"$error":"#NAME?"},{"$error":"#NAME?"},{"$error":"#NAME?"},{"$error":"#NAME?"},{"$error":"#NAME?"}]
[null,null,"Applicant/",{"$f":"Applicant","v":0},null,null,null,null,null,null,null,{"$error":"#NAME?"},{"$error":"#NAME?"},{"$error":"#NAME?"},{"$error":"#NAME?"},{"$error":"#NAME?"},{"$error":"#NAME?"},{"$error":"#NAME?"},{"$error":"#NAME?"},{"$error":"#NAME?"},{"$error":"#NAME?"},{"$error":"#NAME?"},{"$error":"#NAME?"}]
[]
[null,null,"Co-Applicant",{"$f":"CoAppOrg","v":0},null,null,null,null,null,null,null,{"$error":"#NAME?"},{"$error":"#NAME?"},{"$error":"#NAME?"},{"$error":"#NAME?"},{"$error":"#NAME?"},{"$error":"#NAME?"},{"$error":"#NAME?"},{"$error":"#NAME?"},{"$error":"#NAME?"},{"$error":"#NAME?"},{"$error":"#NAME?"},{"$error":"#NAME?"}]
[null,null,null,null,null,null,null,null,null,null,null,{"$error":"#NAME?"},{"$error":"#NAME?"},{"$error":"#NAME?"},{"$error":"#NAME?"},{"$error":"#NAME?"},{"$error":"#NAME?"},{"$error":"#NAME?"},{"$error":"#NAME?"},{"$error":"#NAME?"},{"$error":"#NAME?"},{"$error":"#NAME?"},{"$error":"#NAME?"}]
[null,null,"Project Type",null,null,null,null,null,null,null,null,{"$error":"#NAME?"},{"$error":"#NAME?"},{"$error":"#NAME?"},{"$error":"#NAME?"},{"$error":"#NAME?"},{"$error":"#NAME?"},{"$error":"#NAME?"},{"$error":"#NAME?"},{"$error":"#NAME?"},{"$error":"#NAME?"},{"$error":"#NAME?"},{"$error":"#NAME?"}]
[null,null,"     New Construction ","     Acquisition/Rehabilitation",null,null,null,null,null,null,null,{"$error":"#NAME?"},{"$error":"#NAME?"},{"$error":"#NAME?"},{"$error":"#NAME?"},{"$error":"#NAME?"},{"$error":"#NAME?"},{"$error":"#NAME?"},{"$error":"#NAME?"},{"$error":"#NAME?"},{"$error":"#NAME?"},{"$error":"#NAME?"},{"$error":"#NAME?"}]
[null,null,"     with Federal Subsidy","     with Federal Subsidy",null,null,null,null,null,null,null,{"$error":"#NAME?"},{"$error":"#NAME?"},{"$error":"#NAME?"},{"$error":"#NAME?"},{"$error":"#NAME?"},{"$error":"#NAME?"},{"$error":"#NAME?"},{"$error":"#NAME?"},{"$error":"#NAME?"},{"$error":"#NAME?"},{"$error":"#NAME?"},{"$error":"#NAME?"}]
[null,null,"     without Federal Subsidy","     without Federal Subsidy",null,null,null,null,null,null,null,{"$error":"#NAME?"},{"$error":"#NAME?"},{"$error":"#NAME?"},{"$error":"#NAME?"},{"$error":"#NAME?"},{"$error":"#NAME?"},{"$error":"#NAME?"},{"$error":"#NAME?"},{"$error":"#NAME?"},{"$error":"#NAME?"},{"$error":"#NAME?"},{"$error":"#NAME?"}]
[null,null,null,null,null,null,null,null,null,null,null,{"$error":"#NAME?"},{"$error":"#NAME?"},{"$error":"#NAME?"},{"$error":"#NAME?"},{"$error":"#NAME?"},{"$error":"#NAME?"},{"$error":"#NAME?"},{"$error":"#NAME?"},{"$error":"#NAME?"},{"$error":"#NAME?"},{"$error":"#NAME?"},{"$error":"#NAME?"}]
[null,null,"Uses",null,"Costs",null,"% Total",null,null,null,null,{"$error":"#NAME?"},{"$error":"#NAME?"},{"$error":"#NAME?"},{"$error":"#NAME?"},{"$error":"#NAME?"},{"$error":"#NAME?"},{"$error":"#NAME?"},{"$error":"#NAME?"},{"$error":"#NAME?"},{"$error":"#NAME?"},{"$error":"#NAME?"},{"$error":"#NAME?"}]
[null,null,"Land, Building and Site Work",null,0,null,{"$f":"IF(E$31<=0,0,E21/$E$31)","v":0},null,null,null,null,{"$error":"#NAME?"},{"$error":"#NAME?"},{"$error":"#NAME?"},{"$error":"#NAME?"},{"$error":"#NAME?"},{"$error":"#NAME?"},{"$error":"#NAME?"},{"$error":"#NAME?"},{"$error":"#NAME?"},{"$error":"#NAME?"},{"$error":"#NAME?"},{"$error":"#NAME?"}]
[null,null,"Construction & Contractor Fees",null,0,null,0,null,null,null,null,{"$error":"#NAME?"},{"$error":"#NAME?"},{"$error":"#NAME?"},{"$error":"#NAME?"},{"$error":"#NAME?"},{"$error":"#NAME?"},{"$error":"#NAME?"},{"$error":"#NAME?"},{"$error":"#NAME?"},{"$error":"#NAME?"},{"$error":"#NAME?"},{"$error":"#NAME?"}]
[null,null,"Contingencies",null,0,null,0,null,null,null,null,{"$error":"#NAME?"},{"$error":"#NAME?"},{"$error":"#NAME?"},{"$error":"#NAME?"},{"$error":"#NAME?"},{"$error":"#NAME?"},{"$error":"#NAME?"},{"$error":"#NAME?"},{"$error":"#NAME?"},{"$error":"#NAME?"},{"$error":"#NAME?"},{"$error":"#NAME?"}]
[null,null,"Professional Fees",null,0,null,0,null,null,null,null,{"$error":"#NAME?"},{"$error":"#NAME?"},{"$error":"#NAME?"},{"$error":"#NAME?"},{"$error":"#NAME?"},{"$error":"#NAME?"},{"$error":"#NAME?"},{"$error":"#NAME?"},{"$error":"#NAME?"},{"$error":"#NAME?"},{"$error":"#NAME?"},{"$error":"#NAME?"}]
[null,null,"Construction Interim Cost",null,0,null,0,null,null,null,null,{"$error":"#NAME?"},{"$error":"#NAME?"},{"$error":"#NAME?"},{"$error":"#NAME?"},{"$error":"#NAME?"},{"$error":"#NAME?"},{"$error":"#NAME?"},{"$error":"#NAME?"},{"$error":"#NAME?"},{"$error":"#NAME?"},{"$error":"#NAME?"},{"$error":"#NAME?"}]
[null,null,"Permanent Financing",null,0,null,0,null,null,null,null,{"$error":"#NAME?"},{"$error":"#NAME?"},{"$error":"#NAME?"},{"$error":"#NAME?"},{"$error":"#NAME?"},{"$error":"#NAME?"},{"$error":"#NAME?"},{"$error":"#NAME?"},{"$error":"#NAME?"},{"$error":"#NAME?"},{"$error":"#NAME?"},{"$error":"#NAME?"}]
[null,null,"Soft Cost",null,0,null,0,null,null,null,null,{"$error":"#NAME?"},{"$error":"#NAME?"},{"$error":"#NAME?"},{"$error":"#NAME?"},{"$error":"#NAME?"},{"$error":"#NAME?"},{"$error":"#NAME?"},{"$error":"#NAME?"},{"$error":"#NAME?"},{"$error":"#NAME?"},{"$error":"#NAME?"},{"$error":"#NAME?"}]
[null,null,"Syndication Cost",null,0,null,0,null,null,null,null,{"$error":"#NAME?"},{"$error":"#NAME?"},{"$error":"#NAME?"},{"$error":"#NAME?"},{"$error":"#NAME?"},{"$error":"#NAME?"},{"$error":"#NAME?"},{"$error":"#NAME?"},{"$error":"#NAME?"},{"$error":"#NAME?"},{"$error":"#NAME?"},{"$error":"#NAME?"}]
[null,null,"Developer Fees",null,0,null,0,null,null,null,null,{"$error":"#NAME?"},{"$error":"#NAME?"},{"$error":"#NAME?"},{"$error":"#NAME?"},{"$error":"#NAME?"},{"$error":"#NAME?"},{"$error":"#NAME?"},{"$error":"#NAME?"},{"$error":"#NAME?"},{"$error":"#NAME?"},{"$error":"#NAME?"},{"$error":"#NAME?"}]
[null,null,"Project Reserves",null,0,null,0,null,null,null,null,{"$error":"#NAME?"},{"$error":"#NAME?"},{"$error":"#NAME?"},{"$error":"#NAME?"},{"$error":"#NAME?"},{"$error":"#NAME?"},{"$error":"#NAME?"},{"$error":"#NAME?"},{"$error":"#NAME?"},{"$error":"#NAME?"},{"$error":"#NAME?"},{"$error":"#NAME?"}]
[null,null,"   Total Costs",null,{"$f":"SUM(E21:E30)","v":0},null,0,null,null,null,null,{"$error":"#NAME?"},{"$error":"#NAME?"},{"$error":"#NAME?"},{"$error":"#NAME?"},{"$error":"#NAME?"},{"$error":"#NAME?"},{"$error":"#NAME?"},{"$error":"#NAME?"},{"$error":"#NAME?"},{"$error":"#NAME?"},{"$error":"#NAME?"},{"$error":"#NAME?"}]
[null,null,null,null,null,null,null,null,null,null,null,{"$error":"#NAME?"},{"$error":"#NAME?"},{"$error":"#NAME?"},{"$error":"#NAME?"},{"$error":"#NAME?"},{"$error":"#NAME?"},{"$error":"#NAME?"},{"$error":"#NAME?"},{"$error":"#NAME?"},{"$error":"#NAME?"},{"$error":"#NAME?"},{"$error":"#NAME?"}]
[null,null,"Average Cost Per Residential Building",null,0,"x",0,null,{"$f":"+E33*G33","v":0},null,null,{"$error":"#NAME?"},{"$error":"#NAME?"},{"$error":"#NAME?"},{"$error":"#NAME?"},{"$error":"#NAME?"},{"$error":"#NAME?"},{"$error":"#NAME?"},{"$error":"#NAME?"},{"$error":"#NAME?"},{"$error":"#NAME?"},{"$error":"#NAME?"},{"$error":"#NAME?"}]
[null,null,null,null,"# Bldgs",null,"Avg Cost/bldg",null,"Total Costs",null,null,{"$error":"#NAME?"},{"$error":"#NAME?"},{"$error":"#NAME?"},{"$error":"#NAME?"},{"$error":"#NAME?"},{"$error":"#NAME?"},{"$error":"#NAME?"},{"$error":"#NAME?"},{"$error":"#NAME?"},{"$error":"#NAME?"},{"$error":"#NAME?"},{"$error":"#NAME?"}]
[]
[null,null,"# Bedrooms",null,"Units",null,"Costs/Unit",null,null,null,null,{"$f":"(IF(IsLocked(A36)*1=1,1,0))","v":{"$error":"#NAME?"}},{"$f":"(IF(IsLocked(B36)*1=1,1,0))","v":{"$error":"#NAME?"}},{"$f":"(IF(IsLocked(C36)*1=1,1,0))","v":{"$error":"#NAME?"}},{"$f":"(IF(IsLocked(D36)*1=1,1,0))","v":{"$error":"#NAME?"}},{"$f":"(IF(IsLocked(E36)*1=1,1,0))","v":{"$error":"#NAME?"}},{"$f":"(IF(IsLocked(F36)*1=1,1,0))","v":{"$error":"#NAME?"}},{"$f":"(IF(IsLocked(G36)*1=1,1,0))","v":{"$error":"#NAME?"}},{"$f":"(IF(IsLocked(H36)*1=1,1,0))","v":{"$error":"#NAME?"}},{"$f":"(IF(IsLocked(I36)*1=1,1,0))","v":{"$error":"#NAME?"}},{"$f":"(IF(IsLocked(J36)*1=1,1,0))","v":{"$error":"#NAME?"}},{"$f":"(IF(IsLocked(K36)*1=1,1,0))","v":{"$error":"#NAME?"}},{"$f":"(IF(IsLocked(L36)*1=1,1,0))","v":{"$error":"#NAME?"}}]
[null,null,1,"Bedroom",0,"x",0,null,{"$f":"+G37*E37","v":0},null,null,{"$error":"#NAME?"},{"$error":"#NAME?"},{"$error":"#NAME?"},{"$error":"#NAME?"},{"$error":"#NAME?"},{"$error":"#NAME?"},{"$error":"#NAME?"},{"$error":"#NAME?"},{"$error":"#NAME?"},{"$error":"#NAME?"},{"$error":"#NAME?"},{"$error":"#NAME?"}]
[null,null,2,"Bedroom",0,"x",0,null,{"$f":"+G38*E38","v":0},null,null,{"$error":"#NAME?"},{"$error":"#NAME?"},{"$error":"#NAME?"},{"$error":"#NAME?"},{"$error":"#NAME?"},{"$error":"#NAME?"},{"$error":"#NAME?"},{"$error":"#NAME?"},{"$error":"#NAME?"},{"$error":"#NAME?"},{"$error":"#NAME?"},{"$error":"#NAME?"}]
[null,null,3,"Bedroom",0,"x",0,null,{"$f":"+G39*E39","v":0},null,null,{"$error":"#NAME?"},{"$error":"#NAME?"},{"$error":"#NAME?"},{"$error":"#NAME?"},{"$error":"#NAME?"},{"$error":"#NAME?"},{"$error":"#NAME?"},{"$error":"#NAME?"},{"$error":"#NAME?"},{"$error":"#NAME?"},{"$error":"#NAME?"},{"$error":"#NAME?"}]
[null,null,4,"Bedroom",0,"x",0,null,{"$f":"+G40*E40","v":0},null,null,{"$error":"#NAME?"},{"$error":"#NAME?"},{"$error":"#NAME?"},{"$error":"#NAME?"},{"$error":"#NAME?"},{"$error":"#NAME?"},{"$error":"#NAME?"},{"$error":"#NAME?"},{"$error":"#NAME?"},{"$error":"#NAME?"},{"$error":"#NAME?"},{"$error":"#NAME?"}]
[null,null,0,"Other",0,"x",0,null,{"$f":"+G41*E41","v":0},null,null,{"$error":"#NAME?"},{"$error":"#NAME?"},{"$error":"#NAME?"},{"$error":"#NAME?"},{"$error":"#NAME?"},{"$error":"#NAME?"},{"$error":"#NAME?"},{"$error":"#NAME?"},{"$error":"#NAME?"},{"$error":"#NAME?"},{"$error":"#NAME?"},{"$error":"#NAME?"}]
[null,null,null,null,{"$f":"SUM(E37:E41)","v":0},null,{"$f":"IF(E42=0,0,I42/E42)","v":0},null,{"$f":"SUM(I37:I41)","v":0},null,null,{"$error":"#NAME?"},{"$error":"#NAME?"},{"$error":"#NAME?"},{"$error":"#NAME?"},{"$error":"#NAME?"},{"$error":"#NAME?"},{"$error":"#NAME?"},{"$error":"#NAME?"},{"$error":"#NAME?"},{"$error":"#NAME?"},{"$error":"#NAME?"},{"$error":"#NAME?"}]
[null,null,null,null,null,null,null,null,null,null,null,{"$error":"#NAME?"},{"$error":"#NAME?"},{"$error":"#NAME?"},{"$error":"#NAME?"},{"$error":"#NAME?"},{"$error":"#NAME?"},{"$error":"#NAME?"},{"$error":"#NAME?"},{"$error":"#NAME?"},{"$error":"#NAME?"},{"$error":"#NAME?"},{"$error":"#NAME?"}]
[null,null,"Common Area",null,0,null,{"$f":"IF(OR(E44=0,I44=0),0,I44/E44)","v":0},null,0,null,null,{"$error":"#NAME?"},{"$error":"#NAME?"},{"$error":"#NAME?"},{"$error":"#NAME?"},{"$error":"#NAME?"},{"$error":"#NAME?"},{"$error":"#NAME?"},{"$error":"#NAME?"},{"$error":"#NAME?"},{"$error":"#NAME?"},{"$error":"#NAME?"},{"$error":"#NAME?"}]
[null,null,null,null,null,null,null,null,null,null,null,{"$error":"#NAME?"},{"$error":"#NAME?"},{"$error":"#NAME?"},{"$error":"#NAME?"},{"$error":"#NAME?"},{"$error":"#NAME?"},{"$error":"#NAME?"},{"$error":"#NAME?"},{"$error":"#NAME?"},{"$error":"#NAME?"},{"$error":"#NAME?"},{"$error":"#NAME?"}]
[null,null,"ATTESTATION BY ARCHITECT/PROFESSIONAL ENGINEER    ",null,null,null,null,null,null,null,null,{"$error":"#NAME?"},{"$error":"#NAME?"},{"$error":"#NAME?"},{"$error":"#NAME?"},{"$error":"#NAME?"},{"$error":"#NAME?"},{"$error":"#NAME?"},{"$error":"#NAME?"},{"$error":"#NAME?"},{"$error":"#NAME?"},{"$error":"#NAME?"},{"$error":"#NAME?"}]
[null,null,"The estimated construction costs as set forth in Part II above are an accurate reflection of the",null,null,null,null,null,null,null,null,{"$error":"#NAME?"},{"$error":"#NAME?"},{"$error":"#NAME?"},{"$error":"#NAME?"},{"$error":"#NAME?"},{"$error":"#NAME?"},{"$error":"#NAME?"},{"$error":"#NAME?"},{"$error":"#NAME?"},{"$error":"#NAME?"},{"$error":"#NAME?"},{"$error":"#NAME?"}]
[null,null,"costs in the local jurisdiction where the project is located.  Further, I acknowledge that, in",null,null,null,null,null,null,null,null,{"$error":"#NAME?"},{"$error":"#NAME?"},{"$error":"#NAME?"},{"$error":"#NAME?"},{"$error":"#NAME?"},{"$error":"#NAME?"},{"$error":"#NAME?"},{"$error":"#NAME?"},{"$error":"#NAME?"},{"$error":"#NAME?"},{"$error":"#NAME?"},{"$error":"#NAME?"}]
[null,null,"awarding tax credits, the Nevada Housing Division, Department of Business and Industry,",null,null,null,null,null,null,null,null,{"$error":"#NAME?"},{"$error":"#NAME?"},{"$error":"#NAME?"},{"$error":"#NAME?"},{"$error":"#NAME?"},{"$error":"#NAME?"},{"$error":"#NAME?"},{"$error":"#NAME?"},{"$error":"#NAME?"},{"$error":"#NAME?"},{"$error":"#NAME?"},{"$error":"#NAME?"}]
[null,null,"State of Nevada, may reserve a portion of the annual state ceiling for the project but makes no",null,null,null,null,null,null,null,null,{"$error":"#NAME?"},{"$error":"#NAME?"},{"$error":"#NAME?"},{"$error":"#NAME?"},{"$error":"#NAME?"},{"$error":"#NAME?"},{"$error":"#NAME?"},{"$error":"#NAME?"},{"$error":"#NAME?"},{"$error":"#NAME?"},{"$error":"#NAME?"},{"$error":"#NAME?"}]
[null,null,"representation that such credits can be claimed by the project Applicant/Co-Applicants.",null,null,null,null,null,null,null,null,{"$error":"#NAME?"},{"$error":"#NAME?"},{"$error":"#NAME?"},{"$error":"#NAME?"},{"$error":"#NAME?"},{"$error":"#NAME?"},{"$error":"#NAME?"},{"$error":"#NAME?"},{"$error":"#NAME?"},{"$error":"#NAME?"},{"$error":"#NAME?"},{"$error":"#NAME?"}]
[null,null,null,null,null,null,null,null,null,null,null,{"$error":"#NAME?"},{"$error":"#NAME?"},{"$error":"#NAME?"},{"$error":"#NAME?"},{"$error":"#NAME?"},{"$error":"#NAME?"},{"$error":"#NAME?"},{"$error":"#NAME?"},{"$error":"#NAME?"},{"$error":"#NAME?"},{"$error":"#NAME?"},{"$error":"#NAME?"}]
[null,null,"Date:",{"$f":"DateSig","v":"00:00:00"},"Nevada License No.",null,null,null,null,null,null,{"$error":"#NAME?"},{"$error":"#NAME?"},{"$error":"#NAME?"},{"$error":"#NAME?"},{"$error":"#NAME?"},{"$error":"#NAME?"},{"$error":"#NAME?"},{"$error":"#NAME?"},{"$error":"#NAME?"},{"$error":"#NAME?"},{"$error":"#NAME?"},{"$error":"#NAME?"}]
[null,null,"Firm Name",null,null,null,null,null,null,null,null,{"$error":"#NAME?"},{"$error":"#NAME?"},{"$error":"#NAME?"},{"$error":"#NAME?"},{"$error":"#NAME?"},{"$error":"#NAME?"},{"$error":"#NAME?"},{"$error":"#NAME?"},{"$error":"#NAME?"},{"$error":"#NAME?"},{"$error":"#NAME?"},{"$error":"#NAME?"}]
[null,null,"Architect/\nProfessional Engineer",null,null,null,null,null,null,null,null,{"$error":"#NAME?"},{"$error":"#NAME?"},{"$error":"#NAME?"},{"$error":"#NAME?"},{"$error":"#NAME?"},{"$error":"#NAME?"},{"$error":"#NAME?"},{"$error":"#NAME?"},{"$error":"#NAME?"},{"$error":"#NAME?"},{"$error":"#NAME?"},{"$error":"#NAME?"}]
[null,null,"Date Licensed",null,null,null,null,null,null,null,null,{"$error":"#NAME?"},{"$error":"#NAME?"},{"$error":"#NAME?"},{"$error":"#NAME?"},{"$error":"#NAME?"},{"$error":"#NAME?"},{"$error":"#NAME?"},{"$error":"#NAME?"},{"$error":"#NAME?"},{"$error":"#NAME?"},{"$error":"#NAME?"},{"$error":"#NAME?"}]
[null,null,"Signature:",null,null,null,null,null,null,null,null,{"$error":"#NAME?"},{"$error":"#NAME?"},{"$error":"#NAME?"},{"$error":"#NAME?"},{"$error":"#NAME?"},{"$error":"#NAME?"},{"$error":"#NAME?"},{"$error":"#NAME?"},{"$error":"#NAME?"},{"$error":"#NAME?"},{"$error":"#NAME?"},{"$error":"#NAME?"}]

{"sheet":"Exh 4 Promote NHD","index":7,"n_rows":42,"n_cols":20,"rows_kept":42,"cut":false,"hidden":false,"merged":[[9,2,9,7],[37,2,37,7],[38,2,38,7],[40,2,40,7],[5,2,5,7],[6,2,6,7],[7,2,7,7],[8,2,8,7],[39,2,39,7]]}
[{"$f":"Div","v":"State of Nevada Housing Division"},null,null,null,null,null,null,null,"TOC",null,null,{"$f":"(CELL(\"protect\",A1)=1)*1","v":1},{"$f":"(CELL(\"protect\",B1)=1)*1","v":1},1,1,1,1,1,1,1]
[{"$f":"NHD","v":"2016 NHD FUNDING APPLICATION"},null,null,null,null,null,null,null,null,null,null,{"$f":"(CELL(\"protect\",A2)=1)*1","v":1},{"$f":"(CELL(\"protect\",B2)=1)*1","v":1},{"$f":"(CELL(\"protect\",C2)=1)*1","v":1},{"$f":"(CELL(\"protect\",D2)=1)*1","v":1},{"$f":"(CELL(\"protect\",E2)=1)*1","v":1},{"$f":"(CELL(\"protect\",F2)=1)*1","v":1},{"$f":"(CELL(\"protect\",G2)=1)*1","v":1},{"$f":"(CELL(\"protect\",H2)=1)*1","v":1},{"$f":"(CELL(\"protect\",I2)=1)*1","v":1}]
[null,"AGREEMENT TO PROMOTE THE NEVADA HOUSING DIVISION",null,null,null,null,null,null,null,null,null,1,1,1,1,1,1,1,1,1]
[null,"EXHIBIT FOUR (4)",null,null,null,null,null,null,null,null,null,1,1,1,1,1,1,1,1,1]
[null,"Project Information",null,null,null,null,null,null,null,null,null,1,1,1,1,1,1,1,1,1]
[null,"Project Name",{"$f":"ProjName","v":0},null,null,null,null,null,null,null,null,1,1,1,1,1,1,1,1,1]
[null,"Project Address",{"$f":"ProjAddr","v":0},null,null,null,null,null,null,null,null,1,1,1,1,1,1,1,1,1]
[null,"Project City, Cnty, Zp",{"$f":"ProjCCZip","v":0},null,null,null,null,null,null,null,null,1,1,1,1,1,1,1,1,1]
[null,"Applicant/",{"$f":"Applicant","v":0},null,null,null,null,null,null,null,null,1,1,1,1,1,1,1,1,1]
[null,"Co-Applicant",{"$f":"CoAppOrg","v":0},null,null,null,null,null,null,null,null,1,1,1,1,1,1,1,1,1]
[null,null,null,null,null,null,null,null,null,null,null,1,1,1,1,1,1,1,1,1]
[]
[null,null,null,null,null,null,null,null,null,null,null,1,1,1,1,1,1,1,1,1]
[null,null,null,null,null,null,null,null,null,null,null,1,1,1,1,1,1,1,1,1]
[null,null,null,null,null,null,null,null,null,null,null,1,1,1,1,1,1,1,1,1]
[null,null,null,null,null,null,null,null,null,null,null,1,1,1,1,1,1,1,1,1]
[null,null,null,null,null,null,null,null,null,null,null,1,1,1,1,1,1,1,1,1]
[null,null,null,null,null,null,null,null,null,null,null,1,1,1,1,1,1,1,1,1]
[null,null,null,null,null,null,null,null,null,null,null,1,1,1,1,1,1,1,1,1]
[null,null,null,null,null,null,null,null,null,null,null,1,1,1,1,1,1,1,1,1]
[null,null,null,null,null,null,null,null,null,null,null,1,1,1,1,1,1,1,1,1]
[null,null,null,null,null,null,null,null,null,null,null,1,1,1,1,1,1,1,1,1]
[null,null,null,null,null,null,null,null,null,null,null,1,1,1,1,1,1,1,1,1]
[null,null,null,null,null,null,null,null,null,null,null,1,1,1,1,1,1,1,1,1]
[null,null,null,null,null,null,null,null,null,null,null,1,1,1,1,1,1,1,1,1]
[null,null,null,null,null,null,null,null,null,null,null,1,1,1,1,1,1,1,1,1]
[null,null,null,null,null,null,null,null,null,null,null,1,1,1,1,1,1,1,1,1]
[null,null,null,null,null,null,null,null,null,null,null,1,1,1,1,1,1,1,1,1]
[null,null,null,null,null,null,null,null,null,null,null,1,1,1,1,1,1,1,1,1]
[null,null,null,null,null,null,null,null,null,null,null,1,1,1,1,1,1,1,1,1]
[null,null,null,null,null,null,null,null,null,null,null,1,1,1,1,1,1,1,1,1]
[null,null,null,null,null,null,null,null,null,null,null,1,1,1,1,1,1,1,1,1]
[null,null,null,null,null,null,null,null,null,null,null,1,1,1,1,1,1,1,1,1]
[null,null,null,null,null,null,null,null,null,null,null,1,1,1,1,1,1,1,1,1]
[null,"The project contact person will be:",null,null,null,null,null,null,null,null,null,1,1,1,1,1,1,1,1,1]
[null,null,null,null,null,null,null,null,null,null,null,1,1,1,1,1,1,1,1,1]
[null,"Date:",{"$f":"DateSig","v":"00:00:00"},null,null,null,null,null,null,null,null,{"$f":"(CELL(\"protect\",A37)=1)*1","v":1},{"$f":"(CELL(\"protect\",B37)=1)*1","v":1},{"$f":"(CELL(\"protect\",C37)=1)*1","v":0},{"$f":"(CELL(\"protect\",D37)=1)*1","v":1},{"$f":"(CELL(\"protect\",E37)=1)*1","v":1},{"$f":"(CELL(\"protect\",F37)=1)*1","v":1},{"$f":"(CELL(\"protect\",G37)=1)*1","v":1},{"$f":"(CELL(\"protect\",H37)=1)*1","v":1},{"$f":"(CELL(\"protect\",I37)=1)*1","v":1}]
[null,"Project Owner:",{"$f":"ProjOwner","v":0},null,null,null,null,null,null,null,null,1,1,0,0,0,0,0,0,1]
[null,"Authorized Officer:",{"$f":"AuthOffc","v":0},null,null,null,null,null,null,null,null,1,1,0,0,0,0,0,0,1]
[null,"Title:",{"$f":"Title","v":0},null,null,null,null,null,null,null,null,1,1,0,0,0,0,0,0,1]
[null,"Signature:",null,null,null,null,null,null,null,null,null,1,1,0,0,0,0,0,0,1]
[null,null,null,null,null,"     ",null,null,null,null,null,1,1,1,1,1,1,1,1,1]

{"sheet":"Exh 5 270 day","index":8,"n_rows":90,"n_cols":21,"rows_kept":90,"cut":false,"hidden":false,"merged":[[12,3,12,8],[13,3,13,8],[18,3,18,4],[88,3,88,8],[85,3,85,8],[86,3,86,8],[16,3,16,8],[14,3,14,8],[15,3,15,8],[87,3,87,8]]}
[{"$f":"Div","v":"State of Nevada Housing Division"},null,null,null,null,null,null,null,"TOC",null,null,{"$f":"(CELL(\"protect\",A1)=1)*1","v":1},{"$f":"(CELL(\"protect\",B1)=1)*1","v":1},1,1,1,1,1,1,1,1]
[{"$f":"NHD","v":"2016 NHD FUNDING APPLICATION"},null,null,null,null,null,null,null,null,null,null,{"$f":"(CELL(\"protect\",A2)=1)*1","v":1},{"$f":"(CELL(\"protect\",B2)=1)*1","v":1},{"$f":"(CELL(\"protect\",C2)=1)*1","v":1},{"$f":"(CELL(\"protect\",D2)=1)*1","v":1},{"$f":"(CELL(\"protect\",E2)=1)*1","v":1},{"$f":"(CELL(\"protect\",F2)=1)*1","v":1},{"$f":"(CELL(\"protect\",G2)=1)*1","v":1},{"$f":"(CELL(\"protect\",H2)=1)*1","v":1},{"$f":"(CELL(\"protect\",I2)=1)*1","v":1},{"$f":"(CELL(\"protect\",J2)=1)*1","v":1}]
[null,"AGREEMENT TO COMMENCE CONSTRUCTION WITHIN",null,null,null,null,null,null,null,null,null,1,1,1,1,1,1,1,1,1,1]
[null,"270 DAYS (270 DAY LETTER)\n",null,null,null,null,null,null,null,null,null,1,1,1,1,1,1,1,1,1,1]
[null,"EXHIBIT FIVE (5) ",null,null,null,null,null,null,null,null,null,1,1,1,1,1,1,1,1,1,1]
[null,null,null,null,null,null,null,null,null,null,null,1,1,1,1,1,1,1,1,1,1]
["A.  Parties & Project:    This agreement is by and between the parties and involves",null,null,null,null,null,null,null,null,null,null,1,1,1,1,1,1,1,1,1,1]
["construction as follows:",null,null,null,null,null,null,null,null,null,null,1,1,1,1,1,1,1,1,1,1]
[null,null,null,null,null,null,null,null,null,null,null,1,1,1,1,1,1,1,1,1,1]
[1,null,"The Nevada Housing Division (Division)",null,null,null,null,null,null,null,null,1,1,1,1,1,1,1,1,1,1]
[]
[2,null,"Project Information",null,null,null,null,null,null,null,null,1,1,1,1,1,1,1,1,1,1]
[null,null,"Project Name",{"$f":"ProjName","v":0},null,null,null,null,null,null,null,1,1,1,1,1,1,1,1,1,1]
[null,null,"Project Address",{"$f":"ProjAddr","v":0},null,null,null,null,null,null,null,1,1,1,1,1,1,1,1,1,1]
[null,null,"Project City, Cnty, Zp",{"$f":"ProjCCZip","v":0},null,null,null,null,null,null,null,1,1,1,1,1,1,1,1,1,1]
[null,null,"Applicant/",{"$f":"Applicant","v":0},null,null,null,null,null,null,null,1,1,1,1,1,1,1,1,1,1]
[null,null,"Co-Applicant",{"$f":"CoAppOrg","v":0},null,null,null,null,null,null,null,1,1,1,1,1,1,1,1,1,1]
[null,null,null,null,null,null,null,null,null,null,null,1,1,1,1,1,1,1,1,1,1]
[3,null,"Commencement Date",null,null,"(Completed by Division)",null,null,null,null,null,1,1,1,1,1,1,1,1,1,1]
[null,null,"within 270 days after tax credits are reserved",null,null,null,null,null,null,null,null,1,1,1,1,1,1,1,1,1,1]
[null,null,null,null,null,null,null,null,null,null,null,1,1,1,1,1,1,1,1,1,1]
["B.",null,"Recitals",null,null,null,null,null,null,null,null,1,1,1,1,1,1,1,1,1,1]
[null,null,null,null,null,null,null,null,null,null,null,1,1,1,1,1,1,1,1,1,1]
[null,null,null,null,null,null,null,null,null,null,null,1,1,1,1,1,1,1,1,1,1]
[null,null,null,null,null,null,null,null,null,null,null,1,1,1,1,1,1,1,1,1,1]
[null,null,null,null,null,null,null,null,null,null,null,1,1,1,1,1,1,1,1,1,1]
[null,null,null,null,null,null,null,null,null,null,null,1,1,1,1,1,1,1,1,1,1]
[null,null,null,null,null,null,null,null,null,null,null,1,1,1,1,1,1,1,1,1,1]
[null,null,null,null,null,null,null,null,null,null,null,1,1,1,1,1,1,1,1,1,1]
[null,null,null,null,null,null,null,null,null,null,null,1,1,1,1,1,1,1,1,1,1]
[null,null,null,null,null,null,null,null,null,null,null,1,1,1,1,1,1,1,1,1,1]
[null,null,null,null,null,null,null,null,null,null,null,1,1,1,1,1,1,1,1,1,1]
[null,null,null,null,null,null,null,null,null,null,null,1,1,1,1,1,1,1,1,1,1]
[null,null,null,null,null,null,null,null,null,null,null,1,1,1,1,1,1,1,1,1,1]
[null,null,null,null,null,null,null,null,null,null,null,1,1,1,1,1,1,1,1,1,1]
[null,null,null,null,null,null,null,null,null,null,null,1,1,1,1,1,1,1,1,1,1]
[null,null,null,null,null,null,null,null,null,null,null,1,1,1,1,1,1,1,1,1,1]
[null,null,null,null,null,null,null,null,null,null,null,1,1,1,1,1,1,1,1,1,1]
[null,null,null,null,null,null,null,null,null,null,null,1,1,1,1,1,1,1,1,1,1]
[null,null,null,null,null,null,null,null,null,null,null,1,1,1,1,1,1,1,1,1,1]
[null,null,null,null,null,null,null,null,null,null,null,1,1,1,1,1,1,1,1,1,1]
[null,null,null,null,null,null,null,null,null,null,null,1,1,1,1,1,1,1,1,1,1]
[null,null,null,null,null,null,null,null,null,null,null,1,1,1,1,1,1,1,1,1,1]
[null,null,null,null,null,null,null,null,null,null,null,1,1,1,1,1,1,1,1,1,1]
[null,null,null,null,null,null,null,null,null,null,null,1,1,1,1,1,1,1,1,1,1]
[null,null,null,null,null,null,null,null,null,null,null,1,1,1,1,1,1,1,1,1,1]
[null,null,null,null,null,null,null,null,null,null,null,1,1,1,1,1,1,1,1,1,1]
[null,null,null,null,null,null,null,null,null,null,null,1,1,1,1,1,1,1,1,1,1]
[null,null,null,null,null,null,null,null,null,null,null,1,1,1,1,1,1,1,1,1,1]
[null,null,null,null,null,null,null,null,null,null,null,1,1,1,1,1,1,1,1,1,1]
[null,null,null,null,null,null,null,null,null,null,null,1,1,1,1,1,1,1,1,1,1]
[null,null,null,null,null,null,null,null,null,null,null,1,1,1,1,1,1,1,1,1,1]
[null,null,null,null,null,null,null,null,null,null,null,1,1,1,1,1,1,1,1,1,1]
[null,null,null,null,null,null,null,null,null,null,null,1,1,1,1,1,1,1,1,1,1]
[null,null,null,null,null,null,null,null,null,null,null,1,1,1,1,1,1,1,1,1,1]
[null,null,null,null,null,null,null,null,null,null,null,1,1,1,1,1,1,1,1,1,1]
[null,null,null,null,null,null,null,null,null,null,null,1,1,1,1,1,1,1,1,1,1]
[null,null,null,null,null,null,null,null,null,null,null,1,1,1,1,1,1,1,1,1,1]
[null,null,null,null,null,null,null,null,null,null,null,1,1,1,1,1,1,1,1,1,1]
[null,null,null,null,null,null,null,null,null,null,null,1,1,1,1,1,1,1,1,1,1]
[null,null,null,null,null,null,null,null,null,null,null,1,1,1,1,1,1,1,1,1,1]
[null,null,null,null,null,null,null,null,null,null,null,1,1,1,1,1,1,1,1,1,1]
[null,null,null,null,null,null,null,null,null,null,null,1,1,1,1,1,1,1,1,1,1]
[null,null,null,null,null,null,null,null,null,null,null,1,1,1,1,1,1,1,1,1,1]
[null,null,null,null,null,null,null,null,null,null,null,1,1,1,1,1,1,1,1,1,1]
[null,null,null,null,null,null,null,null,null,null,null,{"$f":"(CELL(\"protect\",A66)=1)*1","v":1},{"$f":"(CELL(\"protect\",B66)=1)*1","v":1},{"$f":"(CELL(\"protect\",C66)=1)*1","v":1},{"$f":"(CELL(\"protect\",D66)=1)*1","v":1},{"$f":"(CELL(\"protect\",E66)=1)*1","v":1},{"$f":"(CELL(\"protect\",F66)=1)*1","v":1},{"$f":"(CELL(\"protect\",G66)=1)*1","v":1},{"$f":"(CELL(\"protect\",H66)=1)*1","v":1},{"$f":"(CELL(\"protect\",I66)=1)*1","v":1},{"$f":"(CELL(\"protect\",J66)=1)*1","v":1}]
[null,null,null,null,null,null,null,null,null,null,null,1,1,1,1,1,1,1,1,1,1]
[null,null,null,null,null,null,null,null,null,null,null,1,1,1,1,1,1,1,1,1,1]
[null,null,null,null,null,null,null,null,null,null,null,1,1,1,1,1,1,1,1,1,1]
[null,null,null,null,null,null,null,null,null,null,null,1,1,1,1,1,1,1,1,1,1]
[null,null,null,null,null,null,null,null,null,null,null,1,1,1,1,1,1,1,1,1,1]
[null,null,null,null,null,null,null,null,null,null,null,1,1,1,1,1,1,1,1,1,1]
[null,null,null,null,null,null,null,null,null,null,null,1,1,1,1,1,1,1,1,1,1]
[null,null,null,null,null,null,null,null,null,null,null,1,1,1,1,1,1,1,1,1,1]
[null,null,null,null,null,null,null,null,null,null,null,1,1,1,1,1,1,1,1,1,1]
[null,null,null,null,null,null,null,null,null,null,null,1,1,1,1,1,1,1,1,1,1]
[null,null,null,null,null,null,null,null,null,null,null,1,1,1,1,1,1,1,1,1,1]
[null,null,null,null,null,null,null,null,null,null,null,1,1,1,1,1,1,1,1,1,1]
[null,null,null,null,null,null,null,null,null,null,null,1,1,1,1,1,1,1,1,1,1]
["C.",null,null,null,null,null,null,null,null,null,null,1,1,1,1,1,1,1,1,1,1]
[null,null,null,null,null,null,null,null,null,null,null,1,1,1,1,1,1,1,1,1,1]
[null,null,null,null,null,null,null,null,null,null,null,1,1,1,1,1,1,1,1,1,1]
[null,null,null,null,null,null,null,null,null,null,null,1,1,1,1,1,1,1,1,1,1]
[null,null,null,null,null,null,null,null,null,null,null,1,1,1,1,1,1,1,1,1,1]
[null,null,"Date:",{"$f":"DateSig","v":"00:00:00"},null,null,null,null,null,null,null,{"$f":"(CELL(\"protect\",A85)=1)*1","v":1},{"$f":"(CELL(\"protect\",B85)=1)*1","v":1},{"$f":"(CELL(\"protect\",C85)=1)*1","v":1},{"$f":"(CELL(\"protect\",D85)=1)*1","v":0},{"$f":"(CELL(\"protect\",E85)=1)*1","v":1},{"$f":"(CELL(\"protect\",F85)=1)*1","v":1},{"$f":"(CELL(\"protect\",G85)=1)*1","v":1},{"$f":"(CELL(\"protect\",H85)=1)*1","v":1},{"$f":"(CELL(\"protect\",I85)=1)*1","v":1},{"$f":"(CELL(\"protect\",J85)=1)*1","v":1}]
[null,null,"Project Owner:",{"$f":"ProjOwner","v":0},null,null,null,null,null,null,null,1,1,1,0,0,0,0,0,0,1]
[null,null,"Authorized Officer:",{"$f":"AuthOffc","v":0},null,null,null,null,null,null,null,1,1,1,0,0,0,0,0,0,1]
[null,null,"Title:",{"$f":"Title","v":0},null,null,null,null,null,null,null,1,1,1,0,0,0,0,0,0,1]
[null,null,"Signature:",null,null,null,null,null,null,null,null,1,1,1,0,0,0,0,0,0,1]
[null,null,null,null,null,null,null,null,null,null,null,1,1,1,1,1,1,1,1,1,1]

{"sheet":"Exh 6 Comp Pd","index":9,"n_rows":29,"n_cols":19,"rows_kept":29,"cut":false,"hidden":false,"merged":[[25,2,25,7],[27,2,27,7],[7,2,7,7],[8,2,8,7],[9,2,9,7],[10,2,10,7],[12,2,12,7],[24,2,24,7],[26,2,26,7]]}
[{"$f":"Div","v":"State of Nevada Housing Division"},null,null,null,null,null,null,"TOC",null,null,{"$f":"(CELL(\"protect\",A1)=1)*1","v":1},{"$f":"(CELL(\"protect\",B1)=1)*1","v":1},1,1,1,1,1,1,1]
[{"$f":"NHD","v":"2016 NHD FUNDING APPLICATION"},null,null,null,null,null,null,null,null,null,1,{"$f":"(CELL(\"protect\",B2)=1)*1","v":1},{"$f":"(CELL(\"protect\",C2)=1)*1","v":1},{"$f":"(CELL(\"protect\",D2)=1)*1","v":1},{"$f":"(CELL(\"protect\",E2)=1)*1","v":1},{"$f":"(CELL(\"protect\",F2)=1)*1","v":1},{"$f":"(CELL(\"protect\",G2)=1)*1","v":1},{"$f":"(CELL(\"protect\",H2)=1)*1","v":1},{"$f":"(CELL(\"protect\",I2)=1)*1","v":1}]
[null,"AGREEMENT TO EXTEND COMPLIANCE PERIOD",null,null,null,null,null,null,null,null,1,1,1,1,1,1,1,1,1]
[null,"EXHIBIT SIX (6)",null,null,null,null,null,null,null,null,1,1,1,1,1,1,1,1,1]
[null,"Pursuant to the Low Income Housing Tax Credit Allocation Plan for the Calendar Year 2016. ",null,null,null,null,null,null,null,null,1,1,1,1,1,1,1,1,1]
[null,null,null,null,null,null,null,null,null,null,1,1,1,1,1,1,1,1,1]
[null,"Project Information",null,null,null,null,null,null,null,null,1,1,1,1,1,1,1,1,1]
[null,"Project Name",{"$f":"ProjName","v":0},null,null,null,null,null,null,null,1,1,1,1,1,1,1,1,1]
[null,"Project Address",{"$f":"ProjAddr","v":0},null,null,null,null,null,null,null,1,1,1,1,1,1,1,1,1]
[null,"Project City, Cnty, Zp",{"$f":"ProjCCZip","v":0},null,null,null,null,null,null,null,1,1,1,1,1,1,1,1,1]
[null,"Applicant/",{"$f":"Applicant","v":0},null,null,null,null,null,null,null,1,1,1,1,1,1,1,1,1]
[]
[null,"Co-Applicant",{"$f":"CoAppOrg","v":0},null,null,null,null,null,null,null,1,1,1,1,1,1,1,1,1]
[null,null,null,null,null,null,null,null,null,null,1,1,1,1,1,1,1,1,1]
[null,"In consideration of being awarded Preference Points pursuant to provisions of Nevada's",null,null,null,null,null,null,null,null,1,1,1,1,1,1,1,1,1]
[null,"2016 Qualified Allocation Plan in the category of Extended Compliance Period I/we the",null,null,null,null,null,null,null,null,1,1,1,1,1,1,1,1,1]
[null,"undersigned hereby commit the above named project to a compliance period of       ",null,null,null,null,null,null,null,null,1,1,1,1,1,1,1,1,1]
[null,50,"(Section 1. Project Information)",null,null,null,null,null,null,null,1,0,1,1,1,1,1,1,1]
[null,null,null,null,null,null,null,null,null,null,1,1,1,1,1,1,1,1,1]
[null,"It is understood and agreed that by receiving Preference Points in this category I/we",null,null,null,null,null,null,null,null,1,1,1,1,1,1,1,1,1]
[null,"waive the provision of the Internal Revenue Code Section 42 regarding Qualified",null,null,null,null,null,null,null,null,1,1,1,1,1,1,1,1,1]
[null,"Contracts that allows for sale of the property/project at year fifteen (15).",null,null,null,null,null,null,null,null,1,1,1,1,1,1,1,1,1]
[null,null,null,null,null,null,null,null,null,null,1,1,1,1,1,1,1,1,1]
[null,"Date:",{"$f":"DateSig","v":"00:00:00"},null,null,null,null,null,null,null,{"$f":"(CELL(\"protect\",A24)=1)*1","v":1},{"$f":"(CELL(\"protect\",B24)=1)*1","v":1},{"$f":"(CELL(\"protect\",C24)=1)*1","v":0},{"$f":"(CELL(\"protect\",D24)=1)*1","v":1},{"$f":"(CELL(\"protect\",E24)=1)*1","v":1},{"$f":"(CELL(\"protect\",F24)=1)*1","v":1},{"$f":"(CELL(\"protect\",G24)=1)*1","v":1},{"$f":"(CELL(\"protect\",H24)=1)*1","v":1},{"$f":"(CELL(\"protect\",I24)=1)*1","v":1}]
[null,"Project Owner:",{"$f":"ProjOwner","v":0},null,null,null,null,null,null,null,1,1,0,0,0,0,0,0,1]
[null,"Authorized Officer:",{"$f":"AuthOffc","v":0},null,null,null,null,null,null,null,{"$f":"(CELL(\"protect\",A26)=1)*1","v":1},1,0,0,0,0,0,0,1]
[null,"Title:",{"$f":"Title","v":0},null,null,null,null,null,null,null,1,1,0,0,0,0,0,0,1]
[null,"Signature:",null,null,null,null,null,null,null,null,1,1,0,0,0,0,0,0,1]
[null,null,null,null,null,null,null,null,null,null,1,1,1,1,1,1,1,1,1]

{"sheet":"Exh 7 Non-profit participation","index":10,"n_rows":42,"n_cols":19,"rows_kept":42,"cut":false,"hidden":false,"merged":[[38,2,38,7],[39,2,39,7],[41,2,41,7],[7,2,7,7],[8,2,8,7],[9,2,9,7],[10,2,10,7],[11,2,11,7],[40,2,40,7]]}
[{"$f":"Div","v":"State of Nevada Housing Division"},null,null,null,null,null,null,"TOC",null,null,{"$f":"(CELL(\"protect\",A1)=1)*1","v":1},{"$f":"(CELL(\"protect\",B1)=1)*1","v":1},1,1,1,1,1,1,1]
[{"$f":"NHD","v":"2016 NHD FUNDING APPLICATION"},null,null,null,null,null,null,null,null,null,{"$f":"(CELL(\"protect\",A2)=1)*1","v":1},{"$f":"(CELL(\"protect\",B2)=1)*1","v":1},{"$f":"(CELL(\"protect\",C2)=1)*1","v":1},{"$f":"(CELL(\"protect\",D2)=1)*1","v":1},{"$f":"(CELL(\"protect\",E2)=1)*1","v":1},{"$f":"(CELL(\"protect\",F2)=1)*1","v":1},{"$f":"(CELL(\"protect\",G2)=1)*1","v":1},{"$f":"(CELL(\"protect\",H2)=1)*1","v":1},{"$f":"(CELL(\"protect\",I2)=1)*1","v":1}]
[null,"CERTIFICATION OF MATERIAL PARTICIPATION BY THE",null,null,null,null,null,null,null,null,1,1,1,1,1,1,1,1,1]
[null,"QUALIFIED NON-PROFIT ORGANIZATION",null,null,null,null,null,null,null,null,1,1,1,1,1,1,1,1,1]
[null,"EXHIBIT SEVEN (7)",null,null,null,null,null,null,null,null,1,1,1,1,1,1,1,1,1]
[null,null,null,null,null,null,null,null,null,null,1,1,1,1,1,1,1,1,1]
[null,"Project Information",null,null,null,null,null,null,null,null,1,1,1,1,1,1,1,1,1]
[null,"Project Name",{"$f":"ProjName","v":0},null,null,null,null,null,null,null,1,1,1,1,1,1,1,1,1]
[null,"Project Address",{"$f":"ProjAddr","v":0},null,null,null,null,null,null,null,1,1,1,1,1,1,1,1,1]
[null,"Project City, Cnty, Zp",{"$f":"ProjCCZip","v":0},null,null,null,null,null,null,null,1,1,1,1,1,1,1,1,1]
[null,"Applicant/",{"$f":"Applicant","v":0},null,null,null,null,null,null,null,1,1,1,1,1,1,1,1,1]
[null,"Co-Applicant",{"$f":"CoAppOrg","v":0},null,null,null,null,null,null,null,1,1,1,1,1,1,1,1,1]
[null,null,null,null,null,null,null,null,null,null,1,1,1,1,1,1,1,1,1]
[null,null,null,null,null,null,null,null,null,null,1,1,1,1,1,1,1,1,1]
[null,null,null,null,null,null,null,null,null,null,1,1,1,1,1,1,1,1,1]
[null,null,null,null,null,null,null,null,null,null,1,1,1,1,1,1,1,1,1]
[null,null,null,null,null,null,null,null,null,null,1,1,1,1,1,1,1,1,1]
[null,null,null,null,null,null,null,null,null,null,1,1,1,1,1,1,1,1,1]
[null,null,null,null,null,null,null,null,null,null,1,1,1,1,1,1,1,1,1]
[null,null,null,null,null,null,null,null,null,null,1,1,1,1,1,1,1,1,1]
[null,null,null,null,null,null,null,null,null,null,1,1,1,1,1,1,1,1,1]
[null,null,null,null,null,null,null,null,null,null,1,1,1,1,1,1,1,1,1]
[null,null,null,null,null,null,null,null,null,null,1,1,1,1,1,1,1,1,1]
[null,null,null,null,null,null,null,null,null,null,1,1,1,1,1,1,1,1,1]
[null,null,null,null,null,null,null,null,null,null,1,1,1,1,1,1,1,1,1]
[null,null,null,null,null,null,null,null,null,null,1,1,1,1,1,1,1,1,1]
[null,null,null,null,null,null,null,null,null,null,1,1,1,1,1,1,1,1,1]
[null,null,null,null,null,null,null,null,null,null,1,1,1,1,1,1,1,1,1]
[null,null,null,null,null,null,null,null,null,null,1,1,1,1,1,1,1,1,1]
[null,null,null,null,null,null,null,null,null,null,1,1,1,1,1,1,1,1,1]
[null,null,null,null,null,null,null,null,null,null,1,1,1,1,1,1,1,1,1]
[null,null,null,null,null,null,null,null,null,null,1,1,1,1,1,1,1,1,1]
[null,null,null,null,null,null,null,null,null,null,1,1,1,1,1,1,1,1,1]
[null,null,null,null,null,null,null,null,null,null,1,1,1,1,1,1,1,1,1]
[null,null,null,null,null,null,null,null,null,null,1,1,1,1,1,1,1,1,1]
[null,null,null,null,null,null,null,null,null,null,1,1,1,1,1,1,1,1,1]
[null,null,null,null,null,null,null,null,null,null,1,1,1,1,1,1,1,1,1]
[null,"Date:",{"$f":"DateSig","v":"00:00:00"},null,null,null,null,null,null,null,{"$f":"(CELL(\"protect\",A38)=1)*1","v":1},{"$f":"(CELL(\"protect\",B38)=1)*1","v":1},{"$f":"(CELL(\"protect\",C38)=1)*1","v":0},{"$f":"(CELL(\"protect\",D38)=1)*1","v":1},{"$f":"(CELL(\"protect\",E38)=1)*1","v":1},{"$f":"(CELL(\"protect\",F38)=1)*1","v":1},{"$f":"(CELL(\"protect\",G38)=1)*1","v":1},{"$f":"(CELL(\"protect\",H38)=1)*1","v":1},{"$f":"(CELL(\"protect\",I38)=1)*1","v":1}]
[null,"Non-Profit Organization",{"$f":"ProjOwner","v":0},null,null,null,null,null,null,null,1,1,0,0,0,0,0,0,1]
[null,"Authorized Officer:",{"$f":"AuthOffc","v":0},null,null,null,null,null,null,null,1,1,0,0,0,0,0,0,1]
[null,"Title:",{"$f":"Title","v":0},null,null,null,null,null,null,null,1,1,0,0,0,0,0,0,1]
[null,"Signature:",null,null,null,null,null,null,null,null,1,1,0,0,0,0,0,0,1]

{"sheet":"Exh 8 PHA ","index":11,"n_rows":45,"n_cols":19,"rows_kept":45,"cut":false,"hidden":false,"merged":[[13,2,13,6],[36,2,36,6],[8,2,8,6],[9,2,9,6],[10,2,10,6],[12,2,12,6],[32,2,32,6],[39,3,39,6],[40,3,40,6],[41,3,41,6],[42,3,42,6],[33,2,33,6],[34,2,34,6],[35,2,35,6]]}
[{"$f":"Div","v":"State of Nevada Housing Division"},null,null,null,null,null,"TOC",null,null,null,{"$f":"(CELL(\"protect\",A1)=1)*1","v":1},{"$f":"(CELL(\"protect\",B1)=1)*1","v":1},1,1,1,1,1,1,1]
[{"$f":"NHD","v":"2016 NHD FUNDING APPLICATION"},null,null,null,null,null,null,null,null,null,{"$f":"(CELL(\"protect\",A2)=1)*1","v":1},{"$f":"(CELL(\"protect\",B2)=1)*1","v":1},{"$f":"(CELL(\"protect\",C2)=1)*1","v":1},{"$f":"(CELL(\"protect\",D2)=1)*1","v":1},{"$f":"(CELL(\"protect\",E2)=1)*1","v":1},{"$f":"(CELL(\"protect\",F2)=1)*1","v":1},{"$f":"(CELL(\"protect\",G2)=1)*1","v":1},{"$f":"(CELL(\"protect\",H2)=1)*1","v":1},{"$f":"(CELL(\"protect\",I2)=1)*1","v":1}]
[null,"CERTIFICATION OF",null,null,null,null,null,null,null,null,1,1,1,1,1,1,1,1,1]
[null,"NOTICE TO THE LOCAL HOUSING AUTHORITY",null,null,null,null,null,null,null,null,1,1,1,1,1,1,1,1,1]
[null,"OR OTHER PUBLIC HOUSING AGENCY",null,null,null,null,null,null,null,null,1,1,1,1,1,1,1,1,1]
[null,"EXHIBIT EIGHT (8)",null,null,null,null,null,null,null,null,1,1,1,1,1,1,1,1,1]
[]
[null,"Project Information",null,null,null,null,null,null,null,null,1,1,1,1,1,1,1,1,1]
[null,"Project Name",{"$f":"ProjName","v":0},null,null,null,null,null,null,null,1,1,1,1,1,1,1,1,1]
[null,"Project Address",{"$f":"ProjAddr","v":0},null,null,null,null,null,null,null,1,1,1,1,1,1,1,1,1]
[null,"Project City, Cnty, Zp",{"$f":"ProjCCZip","v":0},null,null,null,null,null,null,null,1,1,1,1,1,1,1,1,1]
[]
[null,"Applicant/",{"$f":"Applicant","v":0},null,null,null,null,null,null,null,1,1,1,1,1,1,1,1,1]
[null,"Co-Applicant",{"$f":"CoAppOrg","v":0},null,null,null,null,null,null,null,1,1,1,1,1,1,1,1,1]
[null,null,null,null,null,null,null,null,null,null,1,1,1,1,1,1,1,1,1]
[null,null,null,null,null,null,null,null,null,null,1,1,1,1,1,1,1,1,1]
[null,null,null,null,null,null,null,null,null,null,1,1,1,1,1,1,1,1,1]
[null,null,null,null,null,null,null,null,null,null,1,1,1,1,1,1,1,1,1]
[null,null,null,null,null,null,null,null,null,null,1,1,1,1,1,1,1,1,1]
[null,null,null,null,null,null,null,null,null,null,1,1,1,1,1,1,1,1,1]
[null,null,null,null,null,null,null,null,null,null,1,1,1,1,1,1,1,1,1]
[null,null,null,null,null,null,null,null,null,null,1,1,1,1,1,1,1,1,1]
[null,null,null,null,null,null,null,null,null,null,1,1,1,1,1,1,1,1,1]
[null,null,null,null,null,null,null,null,null,null,1,1,1,1,1,1,1,1,1]
[null,null,null,null,null,null,null,null,null,null,1,1,1,1,1,1,1,1,1]
[null,null,null,null,null,null,null,null,null,null,1,1,1,1,1,1,1,1,1]
[null,null,null,null,null,null,null,null,null,null,1,1,1,1,1,1,1,1,1]
[null,null,null,null,null,null,null,null,null,null,1,1,1,1,1,1,1,1,1]
[null,null,null,null,null,null,null,null,null,null,1,1,1,1,1,1,1,1,1]
[null,null,null,null,null,null,null,null,null,null,1,1,1,1,1,1,1,1,1]
[null,null,null,null,null,null,null,null,null,null,{"$f":"(CELL(\"protect\",A31)=1)*1","v":1},{"$f":"(CELL(\"protect\",B31)=1)*1","v":1},{"$f":"(CELL(\"protect\",C31)=1)*1","v":1},{"$f":"(CELL(\"protect\",D31)=1)*1","v":1},{"$f":"(CELL(\"protect\",E31)=1)*1","v":1},{"$f":"(CELL(\"protect\",F31)=1)*1","v":1},{"$f":"(CELL(\"protect\",G31)=1)*1","v":1},{"$f":"(CELL(\"protect\",H31)=1)*1","v":1},{"$f":"(CELL(\"protect\",I31)=1)*1","v":1}]
[null,"We plan to notify the following Housing Authorities or Public Agencies:",null,null,null,null,null,null,null,null,1,1,1,1,1,1,1,1,1]
[null,"A.",null,null,null,null,null,null,null,null,1,1,0,0,0,0,0,1,1]
[null,null,null,null,null,null,null,null,null,null,1,1,0,0,0,0,0,1,1]
[null,"B.",null,null,null,null,null,null,null,null,1,1,0,0,0,0,0,1,1]
[null,null,null,null,null,null,null,null,null,null,1,1,0,0,0,0,0,1,1]
[null,"C.",null,null,null,null,null,null,null,null,1,1,0,0,0,0,0,1,1]
[null,null,null,null,null,null,null,null,null,null,1,1,1,1,1,1,1,1,1]
[null,"Date:",null,{"$f":"DateSig","v":"00:00:00"},null,null,null,null,null,null,1,1,1,0,1,1,1,1,1]
[null,"Project Owner:",null,{"$f":"ProjOwner","v":0},null,null,null,null,null,null,1,1,1,0,0,0,0,1,1]
[null,"Authorized Officer:",null,{"$f":"AuthOffc","v":0},null,null,null,null,null,null,1,1,1,0,0,0,0,1,1]
[null,"Title:",null,{"$f":"Title","v":0},null,null,null,null,null,null,1,1,1,0,0,0,0,1,1]
[null,"Signature:",null,null,null,null,null,null,null,null,1,1,1,0,0,0,0,1,1]
[null,null,null,null,null,null,null,null,null,null,1,1,1,1,1,1,1,1,1]
[null,null,null,null,null,null,null,null,null,null,1,1,1,1,1,1,1,1,1]

{"sheet":"Exh 9 Architect Cert","index":12,"n_rows":32,"n_cols":19,"rows_kept":32,"cut":false,"hidden":false,"merged":[[7,1,7,2],[28,3,28,6],[29,3,29,6],[30,3,30,6],[27,3,27,6],[25,1,25,4],[25,5,25,8],[23,1,23,4],[18,1,18,2],[8,2,8,7],[14,2,14,7],[9,2,9,7],[10,2,10,7],[18,3,18,8],[12,2,12,7],[13,2,13,7]]}
[{"$f":"Div","v":"State of Nevada Housing Division"},null,null,null,null,null,null,null,"TOC",null,{"$f":"(CELL(\"protect\",A1)=1)*1","v":1},{"$f":"(CELL(\"protect\",B1)=1)*1","v":1},1,1,1,1,1,1,1]
[{"$f":"NHD","v":"2016 NHD FUNDING APPLICATION"},null,null,null,null,null,null,null,null,null,{"$f":"(CELL(\"protect\",A2)=1)*1","v":1},{"$f":"(CELL(\"protect\",B2)=1)*1","v":1},{"$f":"(CELL(\"protect\",C2)=1)*1","v":1},{"$f":"(CELL(\"protect\",D2)=1)*1","v":1},{"$f":"(CELL(\"protect\",E2)=1)*1","v":1},{"$f":"(CELL(\"protect\",F2)=1)*1","v":1},{"$f":"(CELL(\"protect\",G2)=1)*1","v":1},{"$f":"(CELL(\"protect\",H2)=1)*1","v":1},{"$f":"(CELL(\"protect\",I2)=1)*1","v":1}]
[null,"PROJECT CERTIFICATION OF COMPLIANCE WITH ALL DESIGN STANDARDS",null,null,null,null,null,null,null,null,1,1,1,1,1,1,1,1,1]
[null,"MANDATED BY THE AMERICANS WITH DISABILITIES ACT, FAIR HOUSING AND",null,null,null,null,null,null,null,null,1,1,1,1,1,1,1,1,1]
[null,"HUD SEC. 504 (AS APPLICABLE)",null,null,null,null,null,null,null,null,1,1,1,1,1,1,1,1,1]
[null,"EXHIBIT NINE (9)",null,null,null,null,null,null,null,null,1,1,1,1,1,1,1,1,1]
[]
[null,"Project Information",null,null,null,null,null,null,null,null,1,1,1,1,1,1,1,1,1]
[null,"Project Name",{"$f":"ProjName","v":0},null,null,null,null,null,null,null,1,1,1,1,1,1,1,1,1]
[null,"Project Address",{"$f":"ProjAddr","v":0},null,null,null,null,null,null,null,1,1,1,1,1,1,1,1,1]
[null,"Project City, Cnty, Zp",{"$f":"ProjCCZip","v":0},null,null,null,null,null,null,null,1,1,1,1,1,1,1,1,1]
[]
[null,"Applicant/",{"$f":"Applicant","v":0},null,null,null,null,null,null,null,1,1,1,1,1,1,1,1,1]
[null,"Co-Applicant",{"$f":"CoAppOrg","v":0},null,null,null,null,null,null,null,1,1,1,1,1,1,1,1,1]
[null,"Architect:",null,null,null,null,null,null,null,null,{"$f":"(CELL(\"protect\",A15)=1)*1","v":1},{"$f":"(CELL(\"protect\",B15)=1)*1","v":1},{"$f":"(CELL(\"protect\",C15)=1)*1","v":0},{"$f":"(CELL(\"protect\",D15)=1)*1","v":0},{"$f":"(CELL(\"protect\",E15)=1)*1","v":0},{"$f":"(CELL(\"protect\",F15)=1)*1","v":0},{"$f":"(CELL(\"protect\",G15)=1)*1","v":0},{"$f":"(CELL(\"protect\",H15)=1)*1","v":0},{"$f":"(CELL(\"protect\",I15)=1)*1","v":1}]
[null,null,null,null,null,null,null,null,null,null,1,1,1,1,1,1,1,1,1]
[null,"WE, the project Applicant/Co-Applicants as the project owner(s) and architect, do certify that the",null,null,null,null,null,null,null,null,1,1,1,1,1,1,1,1,1]
[null,"project architectural plans for the above referenced project have been",null,null,null,null,null,null,null,null,1,1,1,1,1,1,1,1,1]
[null,"submitted to",null,"     ",null,null,null,null,null,null,1,1,1,0,0,0,0,0,0]
[null,null,null,"(local building dept. or approving jurisdiction)",null,null,null,null,null,null,1,1,1,1,1,1,1,1,1]
[null,null,null,null,null,null,null,null,null,null,1,1,1,1,1,1,1,1,1]
[null,"and approved on",null,"2016-02-21",null,null,null,null,null,null,1,1,1,0,1,1,1,1,1]
[null,null,null,"(date)",null,null,null,null,null,null,1,1,1,1,1,1,1,1,1]
[null,null,null,null,null,null,null,null,null,null,1,1,1,1,1,1,1,1,1]
[null,"Signed and dated this",null,23,"day of",2016,null,null,null,null,1,1,1,0,1,0,1,1,1]
[null,null,null,null,null,null,null,null,null,null,1,1,1,1,1,1,1,1,1]
[null,"Date:",null,{"$f":"DateSig","v":"00:00:00"},null,null,null,null,null,null,1,1,1,0,1,1,1,1,1]
[null,"Project Owner Signature:",null,null,null,null,null,null,null,null,1,1,1,0,0,0,0,1,1]
[null,"Project Owner Signature:",null,null,null,null,null,null,null,null,1,1,1,0,0,0,0,1,1]
[null,"Architect Signature:",null,null,null,null,null,null,null,null,1,1,1,0,0,0,0,1,1]
[null,"Architect Signature:",null,null,null,null,null,null,null,null,1,1,1,0,0,0,0,1,1]
[null,null,null,null,null,null,null,null,null,null,1,1,1,1,1,1,1,1,1]

{"sheet":"Exh 10 S & U Attestation","index":13,"n_rows":24,"n_cols":8,"rows_kept":24,"cut":false,"hidden":false,"merged":[[5,1,5,2],[6,2,6,6],[7,2,7,6],[8,2,8,6],[9,2,9,6],[10,2,10,6],[20,2,20,7],[21,2,21,7],[22,2,22,7],[23,2,23,7]]}
[{"$f":"Div","v":"State of Nevada Housing Division"},null,null,null,null,null,null,"TOC"]
[{"$f":"NHD","v":"2016 NHD FUNDING APPLICATION"}]
[null,"EXHIBIT TEN (10)"]
[null,"SOURCES AND USES ATTESTATION BY PROJECT OWNER"]
[]
[null,"Project Information"]
[null,"Project Name",{"$f":"ProjName","v":0}]
[null,"Project Address",{"$f":"ProjAddr","v":0}]
[null,"Project City, Cnty, Zp",{"$f":"ProjCCZip","v":0}]
[null,"Applicant/",{"$f":"Applicant","v":0}]
[null,"Co-Applicant",{"$f":"CoAppOrg","v":0}]
[]
[]
[null,"Applicant/Co-Applicant, as the project owner(s), we certify and attest that the Sources"]
[null,"and Uses information contained in this application is a full and complete disclosure of all"]
[null,"funding sources and all financing and all uses for this  project.  I further certify that I will"]
[null,"disclose any future changes in funding, financing (sources) and uses to the agency."]
[]
[]
[null,"Date:",{"$f":"DateSig","v":"00:00:00"}]
[null,"Project Owner:",{"$f":"ProjOwner","v":0}]
[null,"Authorized Officer:",{"$f":"AuthOffc","v":0}]
[null,"Title:",{"$f":"Title","v":0}]
[null,"Signature:"]

{"sheet":"Exh 11 Mixed-Income Cert","index":14,"n_rows":25,"n_cols":8,"rows_kept":25,"cut":false,"hidden":false,"merged":[[24,2,24,5],[3,1,3,7],[23,2,23,5],[21,2,21,5],[22,2,22,5],[7,2,7,7],[8,2,8,7],[9,2,9,7],[10,2,10,7],[11,2,11,7],[13,1,13,7]]}
[{"$f":"Div","v":"State of Nevada Housing Division"},null,null,null,null,null,null,"TOC"]
[{"$f":"NHD","v":"2016 NHD FUNDING APPLICATION"}]
[null,"EXHIBIT ELEVEN (11)"]
[null,"MIXED-INCOME PROJECT CERTIFICATION"]
[null,"(For Mixed-Income Projects only)"]
[]
[null,"Project Information"]
[null,"Project Name",{"$f":"ProjName","v":0}]
[null,"Project Address",{"$f":"ProjAddr","v":0}]
[null,"Project City, Cnty, Zp",{"$f":"ProjCCZip","v":0}]
[null,"Applicant/",{"$f":"Applicant","v":0}]
[null,"Co-Applicant",{"$f":"CoAppOrg","v":0}]
[]
[]
[null,"Applicant/Co-Applicant, as the project owner(s), we certify and attest that the applicable"]
[null,"fraction will be the lesser of the percentage of affordable sq. footage or percentage of"]
[null,"affordable units in the project. The applicable fraction will be maintained for the"]
[null,"duration of the affordability period; and that the next available unit rule will be enforced."]
[]
[]
[null,"Date:",{"$f":"DateSig","v":"00:00:00"}]
[null,"Project Owner:",{"$f":"ProjOwner","v":0}]
[null,"Authorized Officer:",{"$f":"AuthOffc","v":0}]
[null,"Title:",{"$f":"Title","v":0}]
[null,"Signature:"]

{"sheet":"Exh 12 Self-Scoring Cert","index":15,"n_rows":25,"n_cols":6,"rows_kept":25,"cut":false,"hidden":false,"merged":[[12,1,12,5],[21,2,21,4],[22,2,22,4],[23,2,23,4],[24,2,24,4],[10,2,10,5],[3,1,3,5],[6,2,6,5],[7,2,7,5],[8,2,8,5],[9,2,9,5]]}
[{"$f":"Div","v":"State of Nevada Housing Division"},null,null,null,null,"TOC"]
[{"$f":"NHD","v":"2016 NHD FUNDING APPLICATION"}]
[null,"EXHIBIT TWELVE (12)"]
[null,"SELF-SCORING CERTIFICATION"]
[]
[null,"Project Information"]
[null,"Project Name",{"$f":"ProjName","v":0}]
[null,"Project Address",{"$f":"ProjAddr","v":0}]
[null,"Project City, Cnty, Zp",{"$f":"ProjCCZip","v":0}]
[null,"Applicant/",{"$f":"Applicant","v":0}]
[null,"Co-Applicant",{"$f":"CoAppOrg","v":0}]
[]
[]
[null,"Applicant/Co-Applicant, as the project owner(s), certify and attest that the"]
[null,"Self-Scoring worksheet in the application is accompanied with supporting"]
[null,"documentation for the Preference Points being claimed.  Claimed"]
[null,"Preference Points that lack sufficient supporting documentation will not be"]
[null,"counted. (See Sec. 2 (B) of the QAP)"]
[]
[]
[null,"Date:",{"$f":"DateSig","v":"00:00:00"}]
[null,"Project Owner:",{"$f":"ProjOwner","v":0}]
[null,"Authorized Officer:",{"$f":"AuthOffc","v":0}]
[null,"Title:",{"$f":"Title","v":0}]
[null,"Signature:"]